{"text_format":"1","workbook":"xlsx","n_sheets":16,"sheets":["How to Use this Document","Compliance Documents Checklist","Envelope - Prescriptive","Envelope - Simple Trade Off","Envelope - Detailed TOP","Lighting - Prescriptive","Lighting Trade-off Path","HVAC - Prescriptive","HVAC - TOP","SWH - Prescriptive","SWH - TOP","EP & Motors - Prescriptive","Performance Compliance","Tables","Sheet16","Sheet1"],"not_rendered":{"charts":0,"images":806,"macros":1,"external_links":0,"defined_names":11,"comments":0,"pivot_tables":0},"unopened":[],"bounds":{"document_bytes":16777216,"sheet_cells":100000,"rows_first":2000,"rows_last":500,"rows_between":2000,"halvings":0,"cell_chars":16384,"cell_head_chars":4096},"cells_cut":0,"cells_raw":0,"read":"whole","date_system":"1900"}

{"sheet":"How to Use this Document","index":0,"n_rows":53,"n_cols":9,"rows_kept":53,"cut":false,"hidden":false,"merged":[[24,0,24,8],[15,2,15,8],[19,0,19,1],[30,0,30,8],[25,0,26,8],[27,0,27,8],[28,0,28,8],[29,0,29,8],[19,2,19,6],[16,7,19,8],[21,0,21,8],[22,0,22,8],[23,0,23,8],[16,0,16,1],[17,0,17,1],[18,0,18,1],[17,2,17,6],[18,2,18,6],[16,2,16,6],[20,0,20,8],[15,0,15,1],[6,0,11,8],[13,0,14,8],[5,0,5,8],[3,0,4,8],[12,0,12,8],[52,0,52,8],[50,0,50,8],[51,0,51,8],[31,0,32,8],[34,0,38,8],[39,0,39,8],[40,0,40,8],[41,0,42,8],[43,0,44,8],[45,0,45,8],[46,0,47,8],[49,0,49,8],[48,0,48,8],[33,0,33,8]]}
[]
[]
[null,null,null,null,null,null,null,null,"VERSION 1.2"]
["How to Use this Document"]
[]
[]
["This form provides information required by the the City of Edmonton to show compliance with requirements to meet the National Energy Code for Buildings (NECB) 2011. For details please consult NECB 2011 Division B, Appendix A;  A-1.1.2.1.\n\nThis document is to be used alongside the code document NECB 2011. Any textual interpretation will apply only to the specific language of the code document NECB 2011, to which all users of this compliance spreadsheet are referred.\n\nAn electronic copy of this form must accompany project plans and specification documents being submitted to the City of Edmonton when applying for a building permit.\n"]
[]
[]
[]
[]
[]
[]
["1) Please identify a project name and contact for this project on the “How to Use this Document” tab. All questions about the energy compliance of this project will be directed to this contact. "]
[]
["Project Name",null,"Enter Project Name on 'How to Use this Document' tab"]
["Contact Person",null,"Enter contact person name on 'How to Use this Document' tab"]
["Position",null,"-"]
["Email",null,"-"]
["Phone Number",null,"-"]
[]
["2) Please complete the “NECB Summary Sheet” tab in full.   "]
["a. The tab is required as an introduction to the project as well as first check of project performance. "]
["b. It is required that each consultant provide their contact information for each part of NECB they are responsible for."]
[]
["3) In the “Compliance Documents Checklist” tab, please identify for the project which paths are being followed by indicating one of either Prescriptive or Trade Off for Parts 3, 4, 5, 6, and 7 OR the Performance path for Part 8."]
[]
["a. Select the compliance path(s) you have undertaken by checking the appropriate box on this tab."]
["b. For each path selected a new tab related to that path will appear at the bottom of the spreadsheet."]
[]
["4) Completing Compliance Tabs"]
["a. Complete every compliance tab listed in the spreadsheet. Each will be clearly named identifying the compliance path you have identified for each part for this project. For example “Envelope – Detailed TOP” is the tab for Part 3 – Building Envelope - Detailed trade off path (TOP)."]
[]
["b. Each tab starts with a Section called “General”\no This section provides space for up to 500 words for you to identify key remarks related to this part –  elements that were pre-existing that could not be controlled for, for example, and decisions that you have taken that you believe your building inspection officials need to know\n"]
["o This section provides space for up to 500 words for you to identify key remarks related to this part – elements that were pre-existing that could not be controlled for example, and decisions that you have taken that you believe your building inspection officials need to know."]
[]
[]
[]
[]
["c. Provide a response to every item listed on the appropriate tab for each of the compliance path(s) selected. "]
["o In some cases you have the option to select “N/A” – Not Applicable."]
["o In such cases there will be an area (called “Explanation”) for you to provide an explanation of why the item does not apply. Provide a written explanation."]
[]
["o In such cases you may have a choice of exemptions/permissions for the N/A. If so, select by checking the “Compliant” box of the exemption/permission that is appropriate for this project."]
[]
["d. Continue through each item on the tab. If the item is compliant, check the “Compliant” box."]
["o As each “Compliant” box is checked the red bars to the right of the sheet will turn green. This will help you identify any items you have inadvertently missed."]
[]
[]
["5) For projects using Part 8, provide an energy modeling report. This must include as summary of the proposed building:"]
["a. Reference building inputs for Parts 3-7"]
["b. Proposed building inputs for Parts 3-7"]
["c. Summary of energy performance per end use and total building energy use"]

{"sheet":"Compliance Documents Checklist","index":1,"n_rows":34,"n_cols":3,"rows_kept":34,"cut":false,"hidden":false,"merged":[[33,0,33,4],[33,5,33,8],[34,0,35,8],[2,0,3,8],[31,0,32,8],[24,0,27,8],[29,0,30,8],[4,0,5,8],[1,2,1,8],[0,0,0,1],[0,2,0,8],[1,0,1,1],[18,0,18,4],[13,0,13,4],[6,0,6,4],[7,0,12,8],[14,0,17,8]]}
["Project Name",null,{"$f":"'How to Use this Document'!C16:G16","v":"Enter Project Name on 'How to Use this Document' tab"}]
["Contact Person",null,{"$f":"'How to Use this Document'!C17:G17","v":"Enter contact person name on 'How to Use this Document' tab"}]
["Compliance Documents Checklist"]
[]
["Check the box beside the compliance path you will use for each Part of the NECB."]
[]
["Building Envelope (NECB Part 3):"]
[]
[]
[]
[]
[]
[]
["Lighting (NECB Part 4):"]
[]
[]
[]
[]
["HVAC (NECB Part 5):"]
[]
[]
[]
[]
["Service Water Heating (NECB Part 6):"]
[]
[]
[]
[]
["Electrical Power Systems and Motors (NECB Part 7):"]
[]
[]
["or"]
[]
["Building Energy Performance Compliance Path (NECB Part 8)"]

{"sheet":"Envelope - Prescriptive","index":2,"n_rows":260,"n_cols":11,"rows_kept":260,"cut":false,"hidden":true,"merged":[[230,9,235,9],[237,9,248,9],[249,9,254,9],[256,9,261,9],[120,9,131,9],[42,9,47,9],[18,0,18,8],[139,0,141,8],[142,0,144,8],[183,0,185,8],[195,0,197,8],[204,0,206,8],[201,0,203,8],[221,0,223,8],[227,0,229,8],[233,0,235,8],[240,0,242,8],[259,0,261,8],[246,0,248,8],[249,0,251,8],[255,0,255,8],[256,0,258,8],[68,9,70,9],[71,9,73,9],[224,9,229,9],[123,0,125,8],[214,9,216,9],[145,9,150,9],[154,9,162,9],[163,9,168,9],[169,9,174,9],[176,9,181,9],[183,9,191,9],[210,9,212,9],[192,9,197,9],[198,9,206,9],[145,0,147,8],[126,0,128,8],[132,0,132,8],[133,0,135,8],[129,0,131,8],[136,0,138,8],[148,0,150,8],[179,0,181,8],[218,9,223,9],[207,0,207,8],[210,0,212,8],[209,0,209,8],[133,9,144,9],[208,0,208,8],[100,0,102,8],[110,0,112,8],[189,0,191,8],[116,9,118,9],[116,0,118,8],[119,0,119,8],[120,0,122,8],[172,0,174,8],[157,0,159,8],[166,0,168,8],[58,0,60,8],[61,0,63,8],[64,0,66,8],[71,0,73,8],[88,0,90,8],[97,0,99,8],[104,9,109,9],[110,9,115,9],[113,0,115,8],[75,0,75,8],[76,0,78,8],[252,0,254,8],[213,0,213,8],[214,0,216,8],[217,0,217,8],[218,0,220,8],[169,0,171,8],[175,0,175,8],[186,0,188,8],[151,0,151,8],[152,0,152,8],[153,0,153,8],[182,0,182,8],[154,0,156,8],[160,0,162,8],[163,0,165,8],[224,0,226,8],[230,0,232,8],[236,0,236,8],[237,0,239,8],[243,0,245,8],[192,0,194,8],[176,0,178,8],[198,0,200,8],[0,0,0,1],[0,2,0,8],[1,0,1,1],[48,0,48,8],[19,0,21,8],[28,0,30,8],[31,0,33,8],[34,0,36,8],[37,0,38,8],[39,0,39,8],[40,0,40,8],[41,0,41,8],[42,0,44,8],[45,0,47,8],[1,2,1,8],[25,0,27,8],[4,0,5,8],[14,0,15,8],[16,0,17,2],[16,3,17,8],[22,0,24,8],[6,0,13,8],[19,9,27,9],[49,9,66,9],[85,9,93,9],[94,9,102,9],[76,9,78,9],[79,9,81,9],[34,9,36,9],[107,0,109,8],[67,0,67,8],[68,0,70,8],[85,0,87,8],[94,0,96,8],[103,0,103,8],[104,0,106,8],[79,0,81,8],[82,0,82,8],[83,0,83,8],[84,0,84,8],[91,0,93,8],[49,0,51,8],[52,0,54,8],[28,9,30,9],[31,9,33,9],[55,0,57,8]]}
["Project Name",null,{"$f":"'How to Use this Document'!C16:G16","v":"Enter Project Name on 'How to Use this Document' tab"}]
["Contact Person",null,{"$f":"'How to Use this Document'!C17:G17","v":"Enter contact person name on 'How to Use this Document' tab"}]
[]
[]
["Section 3.1. General"]
[]
["Please enter here any building specific explanation with reference to the item number."]
[]
[]
[]
[]
[]
[]
[]
[]
[]
["Incomplete Items",null,null,{"$f":"SUM(COUNTIF(K20:K123,0),COUNTIF(K134:K259,0))-2","v":29}]
[]
[null,null,null,null,null,null,null,null,null,null,1]
["1 - This Section is to be completed for the building envelope in buildings with spaces covered by Article 3.1.1.2..",null,null,null,null,null,null,null,null,null,0]
[]
[]
["Explanation:"]
[]
[]
["Exemption 1: Those buildings whose heating and cooling system output capacity is less than that specified in Clause 3.1.1.2.(1).(b)..",null,null,null,null,null,null,null,null,null,0]
[]
[]
["2 - The thermal characteristics of the buildings envelope are determined through calculations and tests as described in Article 3.1.1.5..",null,null,null,null,null,null,null,null,null,0]
[]
[]
["3 - The fenestration and door areas of the building envelope are calculated as described in Article 3.1.1.6..",null,null,null,null,null,null,null,null,null,0]
[]
[]
["4 - The overall thermal transmittance of each building envelope assembly is calculated as described in Article 3.1.1.7..",null,null,null,null,null,null,null,null,null,0]
[]
[]
["Section 3.2. Prescriptive Path"]
[]
[]
["3.2.1. General"]
["3.2.1.1. Protection of Insulation Material"]
["5 - The building envelope is designed to avoid increasing the overall thermal transmittance of the insulation material due to the factors described in Sentence 3.2.1.1.(1)..",null,null,null,null,null,null,null,null,null,0]
[]
[]
["Exemption 1: Where any of the conditions described in Sentence 3.2.1.1.(1). occurs as a result of the designed building envelope system, the effect of these factors on the overall thermal transmittance of the insulation material is calculated in accordance with Article 3.1.1.5.."]
[]
[]
["3.2.1.2. Continuity of Insulation"]
["6 - Intersections and partial penetrations of the building envelope, as required by Sentence 3.2.1.2.(1). do not break the continuity of insulation and do not increase the overall thermal transmittance at their projected area to more than permitted in the prescriptive path, Section 3.2..",null,null,null,null,null,null,null,null,null,0]
[null,null,null,null,null,null,null,null,null,null,0]
[]
["Exemption 1: Where an interior wall breaks the continuity of insulation, as described in 3.2.1.2., it is insulated on both sides and with an overall thermal transmittance no more than that required for the exterior wall, as required by Sentence 3.2.1.2.(2).."]
[]
[]
["Exemption 2: Where an ornamentation or appendage other than a balcony slab breaks the continuity of the building envelope according to Sentence 3.2.1.2.(3)., it is insulated on both sides and to an overall thermal transmittance, as required by Sentence 3.2.1.2.(3).."]
[]
[]
["Exemption 3: Where the building envelope assemblies in the same plane intersects but their respective expanses of insulation do not, expanses of insulation are extended, according to 3.2.1.2.(4).."]
[]
[]
["Exemption 4: Where mechanical ducts and chases or electrical system components, described in 3.2.1.2.(5)., are placed within and parallel to the building envelope, the overall thermal transmittance of the building envelope at the projected area of the mechanical or electrical system is not increased, according to 3.2.1.2.(5).."]
[]
[]
["Exemption 5: Joints between components of the building envelope are insulated to provide continuity across such joints, according to Sentence 3.2.1.2.(6).."]
[]
[]
["3.2.1.3. Spaces Heated to Different Temperatures"]
["7 - The overall thermal transmittance, U1, of the building assemblies separating conditioned spaces that are intended to be heated to temperatures that differ by more than 10°C is not greater than that obtained with the equation in Sentence 3.2.1.3.(1)..",null,null,null,null,null,null,null,null,null,0]
[]
[]
["Explanation:"]
[]
[]
[]
["3.2.1.4. Allowable Fenestration and Door Area"]
["8 - The maximum allowable total vertical fenestration and door area to gross wall area ratio (FDWR) of the building, determined according to Article 3.1.1.6., meets the requirements of Sentence 3.1.2.4.(1)..                                                                                                                                                                                                                                       The FDWR of the building is                                 .",null,null,null,null,null,null,null,null,null,0]
[]
[]
["9 - The total skylight area is less than 5% of gross roof area as specified in Sentence 3.1.2.4.(2)..                                                                 ",null,null,null,null,null,null,null,null,null,0]
[]
[]
[]
["3.2.2. Above-ground Components of the Building Envelope"]
["3.2.2.1. Vestibules"]
["10 - Applicable doors that separate conditioned spaces from the exterior are protected with an enclosed vestibule that meet the requirements of Sentence 3.2.2.1.(1)..",null,null,null,null,null,null,null,null,null,0]
[]
[]
["Explanation:"]
[]
[]
["Exemption 1: Vestibules are not required for the scenarios and locations described in Sentence 3.2.2.1.1.(3).."]
[]
[]
["11 - Vestibules are designed so the opening of the interior and exterior doors are not required to be open at the same time such that they meet the requirements of Sentence 3.2.2.1.(2)..",null,null,null,null,null,null,null,null,null,1]
[]
[]
["Explanation:"]
[]
[]
["Exemption 1: Certain barrier-free entrances are exempt according to the requirements of Sentence 3.2.2.1.(2).."]
[]
[]
["3.2.2.2. Thermal Characteristics of Above-ground Opaque Building Assemblies"]
["12 a) - Applicable above ground opaque building assemblies or portions thereof have overall thermal transmittances, for the heating-degree day value where the building is located, that are no greater than those specified in Table 3.2.2.2..",null,null,null,null,null,null,null,null,null,0]
[]
[]
["Explanation:"]
[]
[]
["12 b) - Surfaces with embedded radiant heating or cooling elements have a thermal transmittance no greater than that required by Sentence 3.2.2.2.(3).."]
[]
[]
["Explanation:"]
[]
[]
["13 - The overall thermal transmittance of portions of a foundation wall that are above ground, is not more than that shown in Tables 3.2.2.2., if they meet the conditions of Sentence 3.2.2.2.(2)..",null,null,null,null,null,null,null,null,null,0]
[]
[]
["3.2.2.3. Thermal Characteristics of Fenestration"]
["14 - The overall thermal transmittance of fenestration is not more than that specified in Table 3.2.2.3. for the applicable heating-degree-day category, as determined in accordance with Article 3.1.1.5., according to Sentence 3.2.2.3.(2)..",null,null,null,null,null,null,null,null,null,0]
[]
[]
["Explanation:",null,null,null,null,null,null,null,null,null,0]
[]
[]
["Permission 1: Skylights with overall thermal transmittances exceeding the values specified in Table 3.2.2.3., meet the requirements of maximum area and overall thermal transmittance of Sentence 3.2.2.3.(3)..",null,null,null,null,null,null,null,null,null,0]
[]
[]
["Explanation:"]
[]
[]
["3.2.2.4. Thermal Characteristics of Doors and Access Hatches"]
["15 - The overall thermal transmittance of applicable doors are not more than the requirements listed in Table 3.2.2.4..",null,null,null,null,null,null,null,null,null,1]
[]
[]
["Explanation:"]
[]
[]
["Exemption 1: Doors need not comply with Sentence 3.2.2.4.(1)., if the area and overall thermal tranmittance requirements of Sentence 3.2.2.4.(2). apply.\n"]
[]
[]
["Exemption 2: The door types listed in Sentence 3.2.2.4.(4). need not comply with Sentence 3.2.2.4.(1).."]
[]
[]
["16 - Access hatches that are part of a building envelope are insulated to a nominal thermal transmittance not more than indicated in Sentence 3.2.2.4.(3)..",null,null,null,null,null,null,null,null,null,0]
[]
[]
["Explanation:"]
[]
[]
[]
["3.2.3. Building Assemblies in Contact with the Ground"]
["3.2.3.1. Thermal Characteristics of Walls in Contact with the Ground"]
["17 - The overall thermal transmittance of applicable walls or portions thereof that are below the exterior ground level and are part of the building envelope not covered by Sentence 3.2.3.1.(2)., is not greater than specified in Table 3.2.3.1..",null,null,null,null,null,null,null,null,null,0]
[]
[]
["Explanation:"]
[]
[]
["Exemption 1: Surfaces of a wall or portion thereof that are below the exterior ground level with embedded radiant heating or cooling elements have a thermal transmittance no greater than that required in Sentence 3.2.3.1.(2).."]
[]
[]
["18 - Insulation on walls or portions thereof that are in contact with the ground extend 2.4 m down according to the requirements of Sentence 3.2.3.1.(3)..",null,null,null,null,null,null,null,null,null,0]
[]
[]
["Explanation:"]
[]
[]
["19 - Where the top of the footing is less than 0.6 m below the exterior of the ground level, the floor is insulated for 1.2 m from the perimeter as specified in Sentence 3.2.3.1.(4)..",null,null,null,null,null,null,null,null,null,0]
[]
[]
["Explanation:"]
[]
[]
["3.2.3.2. Thermal Characteristic of Roofs in Contact with the ground"]
["20 - The overall thermal transmittance of below-ground roofs, as described in 3.2.3.2., are not greater than the requirements of Sentence 3.2.3.2.(1).. ",null,null,null,null,null,null,null,null,null,0]
[]
[]
["Explanation:"]
[]
[]
["3.2.3.3. Thermal Characteristics of Floors in Contact with the Ground"]
["21 - The overall thermal transmittance of floors separating conditioned space, as described in Sentence 3.2.3.3.(1)., are less than 0.6 m below grade are not greater than indicated in Table 3.2.3.1., for the appliable heating degree-day category.",null,null,null,null,null,null,null,null,null,0]
[]
[]
["Explanation:"]
[]
[]
["Exemption 1:  Floors-on-ground with embedded heating and cooling pipes, as described in 3.2.3.3.(3). meet the overall transmittance for building assemblies in contact with the ground, according to Sentence 3.2.3.3.(3).."]
[]
[]
["22 - Floors-on-ground with no embedded heating or cooling are insulated as per Sentence 3.2.3.3.(2)., with insulation placed on their top of bottom surfaces for a distance, meeting the requirements of Table 3.2.3.1. Overall Thermal Transmittance of Building Assemblies in Contact with the Ground.",null,null,null,null,null,null,null,null,null,0]
[]
[]
["Explanation:"]
[]
[]
["23 - Applicable floors-on-ground are insulated vertically around the perimeter of the floor in accordance with Sentence 3.2.3.3.(4).. ",null,null,null,null,null,null,null,null,null,0]
[]
[]
["Explanation:"]
[]
[]
["Exemption 1: Exterior insulation is installed according to the requirements of Sentence 3.2.3.3.(4).."]
[]
[]
[]
["3.2.4. Air Leakage"]
["3.2.4.1. General"]
["24 - The building envelope is designed and constructed with a continuous air barrier system comprised of air barrier assemblies to control air leakage into and out of the conditioned space, in accordance with Sentence 3.2.4.1..",null,null,null,null,null,null,null,null,null,0]
[]
[]
["3.2.4.2. Opaque Building Assemblies"]
["25 - All opaque building assemblies that act as environmental separators include an air barrier assembly.",null,null,null,null,null,null,null,null,null,0]
[]
[]
["3.2.4.3. Fenestration"]
["26 - Metal and glass curtain walls that act as environmental separators have an air leakage not greater than specified in Sentence in 3.2.4.3.(2)..",null,null,null,null,null,null,null,null,null,0]
[]
[]
["Explanation:"]
[]
[]
["27 - Fixed windows and skylights that act as environmental separators have an air leakage rate not greater than specified in Sentence 3.2.4.3.(3)..",null,null,null,null,null,null,null,null,null,0]
[]
[]
["Explanation:"]
[]
[]
["28 - Operable windows and skylights that act as environmental separators have an air leakage rate not greater than specified in Sentence 3.2.4.3.(4)..",null,null,null,null,null,null,null,null,null,0]
[]
[]
["Explanation:"]
[]
[]
["3.2.4.4. Doors"]
["29 - Doors that act as environmental separators have an air an leakage rate not greater than specified in Sentence 3.2.4.4.(1)..",null,null,null,null,null,null,null,null,null,0]
[]
[]
["Explanation:"]
[]
[]
["Exemption 1: Revolving doors, automatic commercial sliding doors, and overhead doors described in Sentence 3.2.4.4.(2). that acts as environmental separators have an air leakage rate not greater than specified in Sentence 3.2.4.4.(2)., when tested according to the requirements of Sentence 3.2.4.4.(2).."]
[]
[]
["Exemption 2: Main entry exterior doors that act as environmental separators meet the requirements of Sentence 3.2.4.4.(3).."]
[]
[]
["30 - Loading docks that interface with truck boxes have weather seals, to meet the requirements of 3.2.4.4.(4)..",null,null,null,null,null,null,null,null,null,0]
[]
[]
["Explanation:"]
[]
[]
["3.2.4.5. Fireplace Doors"]
["31 - Fireplaces are equipped with doors or enclosures meeting the requirements of 3.2.4.4.(4)., to restrict air movement through the chimney.",null,null,null,null,null,null,null,null,null,0]
[]
[]
["Explanation:"]

{"sheet":"Envelope - Simple Trade Off","index":3,"n_rows":158,"n_cols":11,"rows_kept":158,"cut":false,"hidden":true,"merged":[[126,0,126,2],[126,3,126,5],[126,6,126,7],[141,0,141,2],[141,3,141,5],[141,6,141,7],[127,3,127,5],[64,9,69,9],[70,9,78,9],[83,0,83,8],[67,0,69,8],[127,0,127,2],[118,6,119,7],[118,0,119,2],[120,6,120,7],[118,3,119,5],[146,0,146,2],[146,3,146,5],[146,6,146,7],[131,8,134,8],[129,0,130,7],[136,0,136,2],[136,3,136,5],[136,6,136,7],[135,3,135,5],[135,0,135,2],[137,0,137,2],[137,3,137,5],[137,6,137,7],[131,0,132,7],[140,0,140,2],[140,3,140,5],[140,6,140,7],[138,0,138,2],[138,3,138,5],[138,6,138,7],[139,0,139,2],[139,3,139,5],[139,6,139,7],[142,0,142,2],[157,9,159,9],[116,0,117,8],[121,3,121,5],[122,3,122,5],[133,0,134,2],[133,3,134,5],[133,6,134,7],[121,6,121,7],[122,6,122,7],[127,6,127,7],[154,0,156,8],[157,0,159,8],[148,0,149,7],[121,0,121,2],[122,0,122,2],[128,0,128,2],[151,9,153,9],[154,9,156,9],[147,3,147,7],[151,0,153,8],[147,0,147,2],[135,6,135,7],[120,0,120,2],[120,3,120,5],[42,9,47,9],[48,9,59,9],[89,0,91,8],[61,9,63,9],[114,0,115,8],[76,0,78,8],[79,0,79,8],[80,0,82,8],[101,0,103,8],[104,0,104,8],[105,0,107,8],[108,0,110,8],[111,0,113,8],[48,0,50,8],[95,9,97,9],[98,9,100,9],[86,9,88,9],[80,9,82,9],[101,9,103,9],[105,9,107,9],[108,9,110,9],[111,9,113,9],[89,9,91,9],[92,9,94,9],[4,0,5,8],[19,9,27,9],[28,9,30,9],[16,0,17,2],[95,0,97,8],[98,0,100,8],[128,3,128,7],[0,0,0,1],[0,2,0,8],[1,0,1,1],[1,2,1,8],[42,0,44,8],[41,0,41,8],[86,0,88,8],[92,0,94,8],[16,3,17,8],[45,0,47,8],[51,0,53,8],[57,0,59,8],[73,0,75,8],[54,0,56,8],[60,0,60,8],[61,0,63,8],[64,0,66,8],[31,9,33,9],[34,0,36,8],[34,9,36,9],[37,0,38,8],[39,0,39,8],[19,0,21,8],[22,0,24,8],[25,0,27,8],[28,0,30,8],[31,0,33,8],[6,0,13,8],[123,0,123,2],[123,3,123,5],[123,6,123,7],[124,0,124,2],[124,3,124,5],[124,6,124,7],[125,0,125,2],[125,3,125,5],[125,6,125,7],[40,0,40,8],[84,0,84,8],[70,0,72,8],[14,0,15,8],[18,0,18,8],[85,0,85,8],[142,3,142,5],[142,6,142,7],[143,0,143,2],[143,3,143,5],[143,6,143,7],[144,0,144,2],[144,3,144,5],[144,6,144,7],[145,0,145,2],[145,3,145,5],[145,6,145,7]]}
["Project Name",null,{"$f":"'Compliance Documents Checklist'!C1:I1","v":"Enter Project Name on 'How to Use this Document' tab"}]
["Contact Person",null,{"$f":"'Compliance Documents Checklist'!C2:F2","v":"Enter contact person name on 'How to Use this Document' tab"}]
[]
[]
["Section 3.1. General"]
[]
["Please enter here any building specific explanation with reference to the item number."]
[]
[]
[]
[]
[]
[]
[]
[]
[]
["Incomplete Items ",null,null,{"$f":"SUM(COUNTIF(K41:K49,0),COUNTIF(K62:K160,0))","v":16}]
[]
[]
["1 - This Section is to be completed for the building envelope in buildings with spaces covered by Article 3.1.1.2..",null,null,null,null,null,null,null,null,null,0]
[]
[]
["Explanation: "]
[]
[]
["Exemption 1: Buildings whose heating and cooling system output capacity is less than that specified in Clause 3.1.1.2.(1).(b).."]
[]
[]
["2 - The thermal characteristics of the buildings envelope are determined through calculations and tests as described in Article 3.1.1.5..",null,null,null,null,null,null,null,null,null,0]
[]
[]
["3 - The fenestration and door areas of the building envelope are calculated as described in Article 3.1.1.6..",null,null,null,null,null,null,null,null,null,0]
[]
[]
["4 - The overall thermal transmittance of each building envelope assemblies is calculated as described in Article 3.1.1.7..",null,null,null,null,null,null,null,null,null,0]
[]
[]
["Section 3.3. Envelope Simple Trade-off Path"]
[]
[]
["3.3.1. General"]
["3.3.1.1. Limitations"]
["5 - The overall thermal transmittance of the building envelope assemblies with embedded radiant heating or cooling is not increased to more than the overall thermal transmittance permitted by Sentence 3.2.2.2.(3)., as required by Sentence 3.3.1.1.(2)..",null,null,null,null,null,null,null,null,null,0]
[]
[]
["Explanation:"]
[]
[]
["6 - If construction techniques are used, resulting in increased performance compared to those required to be used by Articles 3.2.1.1. and 3.2.2.1. and Subsection 3.2.4., that difference in performance is not used in trade-off calculations, as required in Sentence 3.3.1.1.(3)..",null,null,null,null,null,null,null,null,null,0]
[]
[]
["Explanation:"]
[]
[]
["Permission 1: Building envelope components used are more energy-efficient than those prescribed in Section 3.2., and the trade-off calculation is taking this increased performance level into account, for those that can be quantified and are not dependent on occupant interaction, as required by Sentence 3.3.1.1.(4)..",null,null,null,null,null,null,null,null,null,0]
[]
[]
["Explanation:"]
[]
[]
["3.3.1.2. Application"]
["7 - This Section applies only to buildings whose occupancy is known and for which sufficient information is known, as required by Sentence 3.3.1.2.(1)..",null,null,null,null,null,null,null,null,null,0]
[]
[]
["8 - If during contruction, conditions are found to be altered from those used in the original trade-off assessment, the building must be reassessed as required by Sentence 3.3.1.2.(2)..",null,null,null,null,null,null,null,null,null,0]
[]
[]
["Explanation:"]
[]
[]
["9 - The procedures are applied to a single building at a time, as required by Sentence 3.3.1.2.(3)..",null,null,null,null,null,null,null,null,null,0]
[]
[]
["Explanation:"]
[]
[]
["Permission 1: Where a structure is divided into multiple buildings, application as permited by Sentence 3.3.1.2.(4). was used."]
[]
[]
["3.3.1.3. Calculation Procedures"]
["10 - Trade-off calculations were completed as required in Article 3.3.1.3..",null,null,null,null,null,null,null,null,null,0]
[]
[]
[]
["3.3.3. Simple Trade-off Path"]
["3.3.3.1. Application"]
["11 - The simple trade-off path varies only from the maximum overall thermal transmittance of above ground assemblies and to the allowable fenestration and door areas prescribed in Section 3.2., as demonstrated using the equations in Article 3.3.3.2..",null,null,null,null,null,null,null,null,null,0]
[]
[]
["12 - The building envelope will not transfer more energy than it would if all its components complied with that Section, as required by Sentence 3.3.3.1.(1)..",null,null,null,null,null,null,null,null,null,0]
[]
[]
["13 - The building set-point temperature is 18C or above, as required by Sentence 3.3.3.1.(2)..",null,null,null,null,null,null,null,null,null,0]
[]
[]
["14 - The building is not an addition, according to the requirements of Sentence 3.3.3.1.(3)..",null,null,null,null,null,null,null,null,null,0]
[]
[]
["15 - Vertical above-ground portions of the building envelope are only traded off against other veritcal above-ground portions of the building envelope, as required by Sentence 3.3.3.1.(4)..",null,null,null,null,null,null,null,null,null,0]
[]
[]
["16 - Horizontal above-ground portions of the building envelope are only traded off against other horizontal above-ground portions of the building envelope, as  required by Sentence 3.3.3.1.(5)..",null,null,null,null,null,null,null,null,null,0]
[]
[]
["3.3.3.2. Simple Trade-off Calculations"]
["17 - The sum of the areas of all above-ground assemblies in the proposed building is equal to the sum of the areas of the corresponding  above-ground assemblies in the reference building, as required by Sentence 3.3.3.2.(1)..",null,null,null,null,null,null,null,null,null,0]
[]
[]
["18 - Compliance is determined with the equation, as required by Sentence 3.3.3.2.(2)..",null,null,null,null,null,null,null,null,null,0]
[]
[]
["19 - Complete the table below with the overall thermal transmittance for each above-ground assembly in the proposed and reference buildings.",null,null,null,null,null,null,null,null,null,0]
[]
[]
["Assembly Summary of the Proposed Building"]
[]
[]
[]
["Assembly Location",null,null,"Overall Thermal Transmittance of Assembly (W/m2K)",null,null,"Area of Assembly (m2)"]
[]
[null,null,null,null,null,null,null,null,{"$f":"G121*D121","v":0}]
[null,null,null,null,null,null,null,null,0]
[null,null,null,null,null,null,null,null,0]
[null,null,null,null,null,null,null,null,{"$f":"G124*D124","v":0}]
[null,null,null,null,null,null,null,null,{"$f":"G125*D125","v":0}]
[null,null,null,null,null,null,null,null,{"$f":"G126*D126","v":0}]
[null,null,null,null,null,null,null,null,{"$f":"G127*D127","v":0}]
[null,null,null,null,null,null,null,null,0]
["Total",null,null,{"$f":"I129","v":0},null,null,null,null,{"$f":"SUM(I121:I128)","v":0}]
["Assembly Summary of the Reference Building"]
[]
[]
[]
["Assembly Location",null,null,"Overall Thermal Transmittance of Assembly (W/m2K)",null,null,"Area of Assembly (m2)"]
[]
[null,null,null,null,null,null,null,null,{"$f":"G136*D136","v":0}]
[null,null,null,null,null,null,null,null,0]
[null,null,null,null,null,null,null,null,0]
[null,null,null,null,null,null,null,null,0]
[null,null,null,null,null,null,null,null,0]
[null,null,null,null,null,null,null,null,0]
[null,null,null,null,null,null,null,null,0]
[null,null,null,null,null,null,null,null,{"$f":"G143*D143","v":0}]
[null,null,null,null,null,null,null,null,0]
[null,null,null,null,null,null,null,null,0]
[null,null,null,null,null,null,null,null,0]
[null,null,null,null,null,null,null,null,0]
["Total",null,null,{"$f":"I148","v":0},null,null,null,null,{"$f":"SUM(I136:I147)","v":0}]
[]
[]
[]
["20 - The overall thermal transmittance of all above-ground assemblies of the envelope of the proposed building is as follows:",null,null,null,null,null,null,null,null,null,1]
[null,null,null,null,null,null,null,null,null,null,1]
[]
["21 - The overall thermal transmittance of all above-ground assemblies of the envelope of the reference building is as follows:",null,null,null,null,null,null,null,null,null,1]
[null,null,null,null,null,null,null,null,null,null,1]
[]
["22 - The overall thermal transmittance of the proposed building is less than or equal to that of the reference building, as required by Subsection 3.3.3. (This checkbox is automatically updated, see help).",null,null,null,null,null,null,null,null,null,0]

{"sheet":"Envelope - Detailed TOP","index":4,"n_rows":191,"n_cols":11,"rows_kept":191,"cut":false,"hidden":true,"merged":[[42,9,47,9],[48,9,59,9],[64,9,69,9],[70,9,78,9],[105,9,110,9],[111,9,116,9],[117,9,122,9],[133,9,138,9],[140,9,148,9],[124,9,126,9],[127,9,129,9],[61,9,63,9],[85,0,87,8],[88,0,90,8],[98,0,100,8],[83,0,83,8],[84,0,84,8],[130,0,132,8],[139,0,139,8],[140,0,142,8],[143,0,145,8],[91,0,93,8],[94,0,94,8],[95,0,97,8],[101,0,101,8],[105,0,107,8],[117,0,119,8],[124,0,126,8],[127,0,129,8],[150,9,152,9],[190,0,192,8],[177,0,179,8],[180,0,182,8],[183,0,183,8],[184,0,186,8],[187,0,189,8],[130,9,132,9],[80,9,82,9],[95,9,97,9],[98,9,100,9],[102,9,104,9],[80,0,82,8],[177,9,179,9],[180,9,182,9],[184,9,186,9],[187,9,189,9],[190,9,192,9],[164,9,169,9],[170,9,175,9],[154,9,156,9],[158,9,160,9],[161,9,163,9],[111,0,113,8],[170,0,172,8],[154,0,156,8],[157,0,157,8],[158,0,160,8],[133,0,135,8],[136,0,138,8],[146,0,148,8],[167,0,169,8],[153,0,153,8],[149,0,149,8],[150,0,152,8],[41,0,41,8],[19,0,21,8],[0,0,0,1],[0,2,0,8],[1,0,1,1],[1,2,1,8],[2,0,3,8],[14,0,15,8],[37,0,38,8],[18,0,18,8],[39,0,39,8],[40,0,40,8],[16,0,17,2],[16,3,17,8],[4,0,5,8],[6,0,13,8],[193,7,193,8],[42,0,44,8],[48,0,50,8],[54,0,56,8],[60,0,60,8],[70,0,72,8],[76,0,78,8],[79,0,79,8],[45,0,47,8],[51,0,53,8],[57,0,59,8],[61,0,63,8],[64,0,66,8],[67,0,69,8],[73,0,75,8],[176,0,176,8],[102,0,104,8],[108,0,110,8],[114,0,116,8],[120,0,122,8],[161,0,163,8],[164,0,166,8],[173,0,175,8],[123,0,123,8],[19,9,27,9],[22,0,24,8],[25,0,27,8],[28,0,30,8],[28,9,30,9],[31,0,33,8],[31,9,33,9],[34,0,36,8],[34,9,36,9]]}
["Project Name",null,{"$f":"'Compliance Documents Checklist'!C1:I1","v":"Enter Project Name on 'How to Use this Document' tab"},null,null,null,null,null,null,"M"]
["Contact Person",null,{"$f":"'Compliance Documents Checklist'!C2:F2","v":"Enter contact person name on 'How to Use this Document' tab"}]
[]
[]
["Section 3.1. General"]
[]
["Please enter here any building specific explanation with reference to the item number."]
[]
[]
[]
[]
[]
[]
[]
[0]
[]
["Incomplete Items",null,null,{"$f":"SUM(COUNTIF(K41:K53,0),COUNTIF(K62:K142,0),COUNTIF(K149:K193,0))+A15","v":27}]
[]
[]
["1 - This Section is to be completed for the building envelope in buildings with spaces covered by Article 3.1.1.2..",null,null,null,null,null,null,null,null,null,1]
[]
[]
["Explanation:"]
[]
[]
["Exemption 1: Buildings whose heating and cooling system output capacity is less than that specified in Clause 3.1.1.2.(1).(b).."]
[]
[]
["2 - The thermal characteristics of the buildings envelope are determined through calculations and tests as described in Article 3.1.1.5..",null,null,null,null,null,null,null,null,null,0]
[]
[]
["3 - The fenestration and door areas of the building envelope are calculated as described in Article 3.1.1.6..",null,null,null,null,null,null,null,null,null,0]
[]
[]
["4 - The overall thermal transmittance of each building envelope assemblies is calculated as described in Article 3.1.1.7..",null,null,null,null,null,null,null,null,null,0]
[]
[]
["Section 3.3. Envelope Detailed Trade-off Path"]
[]
[]
["3.3.1. General"]
["3.3.1.1. Limitations"]
["5 -  The overall thermal transmittance of the building envelope assemblies with embedded radiant heating or cooling is not increased to more than the overall thermal transmittance permitted by Sentence 3.2.2.2.(3)., as required by Sentence 3.3.1.1.(2)..",null,null,null,null,null,null,null,null,null,0]
[]
[]
["Explanation:"]
[]
[]
["6 - If construction techniques are used, resulting in increased performance compared to those required to be used by Articles 3.2.1.1. and 3.2.2.1. and Subsection 3.2.4., that difference in performance is not used in trade-off calculations, as required in Sentence 3.3.1.1.(3)..",null,null,null,null,null,null,null,null,null,0]
[]
[]
["Explanation:"]
[]
[]
["Permission 1: Building envelope components used are more energy-efficient than those prescribed in Section 3.2., and the trade-off calculation is taking this increased performance level into account, for those that can be quantified and are not dependent on occupant interaction, as required by Sentence 3.3.1.1.(4)..",null,null,null,null,null,null,null,null,null,0]
[]
[]
["Explanation:"]
[]
[]
["3.3.1.2. Application"]
["7 - This Section applies only to buildings whose occupancy is known and for which sufficient information is known, as required by Sentence 3.3.1.2.(1)..",null,null,null,null,null,null,null,null,null,0]
[]
[]
["8 - If during construction, conditions are found to be altered from those used in the original trade-off assessment, the building must be reassessed as required by Sentence 3.3.1.2.(2)..",null,null,null,null,null,null,null,null,null,0]
[]
[]
["Explanation:"]
[]
[]
["9 - The procedures are applied to a single building at a time, as required by Sentence 3.3.1.2.(3)..",null,null,null,null,null,null,null,null,null,0]
[]
[]
["Explanation:"]
[]
[]
["Permission 1: Where a structure is divided into multiple buildings, application as permitted by Sentence 3.3.1.2.(4). was used."]
[]
[]
["3.3.1.3. Calculation Procedures"]
["10 - Trade-off calculations were completed as required by Article 3.3.1.3..",null,null,null,null,null,null,null,null,null,0]
[]
[]
["3.3.4. Detailed Trade-off Path"]
["3.3.4.1. Scope"]
["8 - The thermal characteristics of one or more components of the building envelope of a single building are permitted to be less energy-efficient than otherwise prescribed by Section 3.2., provided it can be demonstrated that the building envelope will not transfer more energy than it would if all its components complied with that Section, according to Sentence 3.3.4.1.(1).."]
[]
[]
["9 - The allowable fenestration and door areas are permitted to be varied from those prescribed in Article 3.2.1.4., provided it can be demonstrated that the building envelope will not transfer more energy than it would if all its components complied with Section 3.2., according to Sentence 3.3.4.1.(2).. "]
[]
[]
["10 - A semi-heated building is permitted to meet less stringent building envelope requirements if it can be shown that the total energy transferred through the building envelope of the proposed semi-heated building is less than or equal to the total energy transferred through the building envelope of the reference building, subject to the limitations stated in Sentence 3.3.4.1.(3).."]
[]
[]
["3.3.4.2. Compliance"]
["11 - The reference building’s building envelope energy target calculations, account for building components, in accordance with the requirements of Section 3.2. for the climatic zone under consideration, as required by Sentence 3.3.4.2.(1)..",null,null,null,null,null,null,null,null,null,0]
[]
[]
["12 - The annual energy consumption of the proposed building’s building envelope does not exceed the reference building’s building envelope energy target, as required by Sentence 3.3.4.2.(2)..",null,null,null,null,null,null,null,null,null,0]
[]
[]
["3.3.4.3. Treatment of Additions"]
["13 - Does the building contain an addition?",null,null,null,null,null,null,null,null,null,0]
[]
[]
["14 - For the purpose of detailed trade-off compliance calculations, the additions are assessed in either fashion required by Sentence 3.3.4.3.(1).",null,null,null,null,null,null,null,null,null,0]
[]
[]
["Explanation:"]
[]
[]
["15 - If the addition is being considered together with the existing building, the existing building's envelope parameters, as listed in Sentence 3.3.4.3.(2). are permitted to be combined with the addition's areas in calculating the addition's FDWR to determine the building envelope energy target. ",null,null,null,null,null,null,null,null,null,0]
[]
[]
["Explanation:"]
[]
[]
["16 - If the addition is being considered together with the existing building, the existing building's envelope parameters, as listed in Sentence 3.3.4.3.(3). are permitted to be combined with the addition's areas in calculating the addition's total skylight area to gross roof area ratio to determine the building envelope energy target.",null,null,null,null,null,null,null,null,null,0]
[]
[]
["Explanation:"]
[]
[]
["3.3.4.4. Compliance Calculations"]
["17 - Compliance with Subsection 3.3.4. is assessed through energy modelling that conforms to the specifications detailed in Article 3.3.4.4. and in Articles 3.3.4.5. to 3.3.4.10..",null,null,null,null,null,null,null,null,null,0]
[]
[]
["18 - The energy model calculations are performed for a one-year period, using the time interval no greater than that required by Sentence 3.3.4.4.(2)..",null,null,null,null,null,null,null,null,null,0]
[]
[]
["19 - Schedules and climatic data input in the energy model are for a time interval no greater than that required by Sentence 3.3.4.4.(3)..",null,null,null,null,null,null,null,null,null,0]
[]
[]
["20 - The calculation methods employed in the energy model, when a software is used, conforms to the requirement of Sentence 3.3.4.4.(4)..",null,null,null,null,null,null,null,null,null,0]
[]
[]
["Explanation:"]
[]
[]
["3.3.4.5. Climatic Data"]
["21 - The energy model calculations is performed using values of at least 10 years of measured climatic data, as required by Sentence 3.3.4.5.(1)..",null,null,null,null,null,null,null,null,null,0]
[]
[]
["Permission 1: For urban regions with several climatic data sets and for locations where weather data are not available, the energy model calculations are be performed using available weather data that best represent the climate at the building site, according to Sentence 3.3.4.5.(1).",null,null,null,null,null,null,null,null,null,0]
[]
[]
["Explanation:"]
[]
[]
["3.3.4.6. Thermal Mass"]
["22 - The energy model accounts for the effect of thermal mass , as required by Sentence 3.3.4.6.(1).",null,null,null,null,null,null,null,null,null,0]
[]
[]
["3.3.4.7. Space Temperature"]
["23 - The energy model calculations include dynamic calculation of indoor space temperatures, as required by Sentence 3.3.4.7.(1).",null,null,null,null,null,null,null,null,null,0]
[]
[]
["3.3.4.8. Building Envelope Loads"]
["24 - The energy model calculates heat transfer through walls, roofs and floors, including the dynamic response due to thermal characteristics of the particular assembly, as required by Sentence 3.3.4.8.(1)..",null,null,null,null,null,null,null,null,null,0]
[]
[]
["25 - Calculations of heat transfer through walls and roofs account for the effect of solar radiation absorbed on their exterior surfaces, including orientation and absorptance as required by Sentence 3.3.4.8.(2)..",null,null,null,null,null,null,null,null,null,0]
[]
[]
["26 - The energy model calculations accounts for heat transfer through fenestration, including temperature difference and transmission of solar radiation as required by Sentence 3.3.4.8.(3)..",null,null,null,null,null,null,null,null,null,0]
[]
[]
["Explanation:"]
[]
[]
["27 - Calculations of cooling and heating loads due to the transmission of solar radiation through fenestration account for the factors as required by Sentence 3.3.4.8.(4)..",null,null,null,null,null,null,null,null,null,0]
[]
[]
["Explanation:"]
[]
[]
["3.3.4.9. Proposed Building Envelope Annual Energy Consumption Calculation"]
["28 - The envelope annual energy consumption of the proposed building is calculated according to Article 3.3.4.9..",null,null,null,null,null,null,null,null,null,0]
[]
[]
["29 - The envelope annual energy consumption of the proposed building is:                              ",null,null,null,null,null,null,null,null,null,0]
[]
[]
["3.3.4.10. Reference Building Envelope Energy Target Calculation"]
["30 - The envelope annual energy consumption of the reference building is calculated according to the requirements of Article 3.3.4.10..",null,null,null,null,null,null,null,null,null,0]
[]
[]
["31 - The envelope annual energy consumption of the reference building is",null,null,null,null,null,null,null,null,null,1]
[]
[]
["32 - The annual energy consumption of the proposed building envelope is less than that of the reference building envelope as required by 3.3.4.",null,null,null,null,null,null,null,null,null,0]

{"sheet":"Lighting - Prescriptive","index":5,"n_rows":304,"n_cols":11,"rows_kept":304,"cut":false,"hidden":true,"merged":[[6,0,13,8],[255,9,257,9],[261,9,263,9],[264,9,266,9],[267,9,275,9],[276,9,284,9],[294,9,299,9],[300,9,305,9],[242,9,244,9],[245,9,247,9],[248,9,250,9],[251,9,253,9],[288,9,293,9],[232,9,240,9],[211,9,213,9],[221,9,223,9],[195,9,203,9],[205,9,210,9],[215,9,220,9],[225,9,230,9],[170,9,178,9],[179,9,184,9],[188,9,193,9],[185,9,187,9],[164,9,169,9],[73,9,75,9],[155,0,157,8],[89,9,91,9],[104,9,106,9],[139,9,141,9],[142,9,144,9],[158,0,160,8],[129,0,131,8],[135,0,137,8],[148,0,150,8],[152,0,154,8],[132,0,134,8],[138,0,138,8],[139,0,141,8],[114,0,114,8],[115,0,115,8],[117,0,119,8],[123,0,125,8],[126,0,128,8],[111,0,113,8],[76,9,81,9],[73,0,75,8],[101,0,103,8],[37,9,42,9],[44,9,49,9],[50,9,55,9],[57,9,62,9],[64,9,72,9],[32,9,33,9],[20,9,31,9],[161,9,163,9],[83,9,88,9],[92,9,97,9],[98,9,103,9],[108,9,113,9],[117,9,125,9],[126,9,131,9],[132,9,137,9],[145,9,150,9],[152,9,160,9],[303,0,305,8],[294,0,296,8],[297,0,299,8],[282,0,284,8],[285,0,285,8],[286,0,286,8],[287,0,287,8],[288,0,290,8],[254,0,254,8],[255,0,257,8],[258,0,258,8],[259,0,259,8],[273,0,275,8],[276,0,278,8],[260,0,260,8],[261,0,263,8],[264,0,266,8],[267,0,269,8],[300,0,302,8],[270,0,272,8],[279,0,281,8],[291,0,293,8],[32,0,33,8],[16,0,17,2],[16,3,17,8],[214,0,214,8],[215,0,217,8],[221,0,223,8],[224,0,224,8],[225,0,227,8],[167,0,169,8],[173,0,175,8],[176,0,178,8],[182,0,184,8],[191,0,193,8],[198,0,200,8],[208,0,210,8],[218,0,220,8],[204,0,204,8],[57,0,59,8],[60,0,62,8],[64,0,66,8],[63,0,63,8],[108,0,110,8],[67,0,69,8],[76,0,78,8],[0,0,0,1],[0,2,0,8],[1,0,1,1],[50,0,52,8],[56,0,56,8],[14,0,15,8],[2,0,3,8],[19,0,19,8],[20,0,22,8],[18,0,18,8],[34,0,34,8],[35,0,35,8],[36,0,36,8],[4,0,5,8],[29,0,31,8],[40,0,42,8],[47,0,49,8],[53,0,55,8],[1,2,1,8],[23,0,25,8],[26,0,28,8],[37,0,39,8],[44,0,46,8],[43,0,43,8],[185,0,187,8],[164,0,166,8],[170,0,172,8],[161,0,163,8],[70,0,72,8],[79,0,81,8],[83,0,85,8],[82,0,82,8],[89,0,91,8],[92,0,94,8],[98,0,100,8],[86,0,88,8],[95,0,97,8],[231,0,231,8],[232,0,234,8],[251,0,253,8],[228,0,230,8],[235,0,237,8],[238,0,240,8],[241,0,241,8],[104,0,106,8],[107,0,107,8],[242,0,244,8],[245,0,247,8],[248,0,250,8],[116,0,116,8],[120,0,122,8],[205,0,207,8],[211,0,213,8],[142,0,144,8],[145,0,147,8],[151,0,151,8],[179,0,181,8],[188,0,190,8],[194,0,194,8],[195,0,197,8],[201,0,203,8]]}
["Project Name",null,{"$f":"'Compliance Documents Checklist'!C1:I1","v":"Enter Project Name on 'How to Use this Document' tab"}]
["Contact Person",null,{"$f":"'Compliance Documents Checklist'!C2:F2","v":"Enter contact person name on 'How to Use this Document' tab"}]
[]
[]
["Section 4.1. General"]
[]
["Please enter here any building specific explanation with reference to the item number."]
[]
[]
[]
[]
[]
[]
[]
[]
[]
["Incomplete Items",null,null,{"$f":"COUNTIF(K20:K303,0)","v":44}]
[]
[]
["4.1.1. General"]
["1 - This Section is complete for all applicable lighting components in the building, as required by 4.2.1.2(1)..",null,null,null,null,null,null,null,null,null,0]
[]
[]
["Exemption 1: Emergency lighting meeting the requirements of 4.1.1.2.(2).(a).."]
[]
[]
["Exemption 2: Lighting within dwelling units, as per 4.1.1.2.(2).(b).."]
[]
[]
["Exemption 3: Where it is impractical, according to 4.1.1.2.(2).(c).."]
[]
[]
["Section 4.2. Prescriptive Path"]
[]
[]
["4.2.1. Interior Lighting Power"]
["4.2.1.1. Exit Signs"]
["2 - Power requirements for lighting units for exit signs conform to the standard listed in Sentence 4.2.1.1.(1)..",null,null,null,null,null,null,null,null,null,0]
[]
[]
["Explanation:"]
[]
[]
["4.2.1.2. Fluorescent Lamp Ballast"]
["3 - Fluorescent lamp ballasts conform to the standard listed in Sentence 4.2.1.2.(1)..",null,null,null,null,null,null,null,null,null,0]
[]
[]
["Explanation:"]
[]
[]
["4 - Electronic fluorescent lamp ballasts not within the scope of the standard listed in Sentence 4.2.1.2., conform to the Sentence 4.2.1.2.(2)..",null,null,null,null,null,null,null,null,null,0]
[]
[]
["Explanation:"]
[]
[]
["4.2.1.3. Limits to Installed Interior Lighting Power"]
["5 - The installed interior lighting power described in Article 4.2.1.4. does not exceed the value of the interior lighting power allowance determined using either the building area method described in Article 4.2.1.5., or the space-by-space method described in Article 4.2.1.6..",null,null,null,null,null,null,null,null,null,0]
[]
[]
["Permission 1: The individual power allowances in each space of the building do not have to be met, as permitted by Sentence 4.2.1.3(2).."]
[]
[]
["4.2.1.4. Determination of the Installed Interior Lighting Power"]
["6 - The installed interior lighting power includes all power used by the devices and controls, as required by Sentence 4.2.1.4.(1)..",null,null,null,null,null,null,null,null,null,0]
[]
[]
["Exemption 1: Lighting for the special cases listed in Sentence 4.2.1.4.(4)., need not be included in the calculation of installed interior lighting power."]
[]
[]
["Exemption 2: Lighting need not be included in the calculation of installed interior lighting power where its inclusion would have adverse effect as permitted Sentence 4.2.1.4.(5).."]
[]
[]
["7 - The installed interior lighting power is determined as required by Sentence 4.2.1.4.(2)..",null,null,null,null,null,null,null,null,null,0]
[]
[]
["8 - Luminaire wattage to be included in installed interior lighting power is determined in accordance with Sentence 4.2.1.4.(3)..",null,null,null,null,null,null,null,null,null,0]
[]
[]
["Explanation:"]
[]
[]
["4.2.1.5. Calculation of Interior Lighting Power Allowance Using the Building Area Method"]
["9 - Calculation of interior lighting power allowance using the building area method as provided in Article 4.2.1.5. may be applied only where the interior lighting power allowance is being determined for an entire building, and the building type or an equivalent building type is identified in Table 4.2.1.5.. ",null,null,null,null,null,null,null,null,null,0]
[]
[]
["Explanation:"]
[]
[]
["10 - Interior lighting power allowance calculations are based on the primary use for which the building is intended, as required by Sentence 4.2.1.5.(2)..",null,null,null,null,null,null,null,null,null,0]
[]
[]
["11 - 10% or less of the gross lighted area of the building can be classified as being of a building type other than the principal type for the building, as required by sentence 4.2.1.5.(3).. ",null,null,null,null,null,null,null,null,null,0]
[]
[]
["Explanation:"]
[]
[]
["12 - The building is of a type other than those listed in Table 4.2.1.5. and no equivalent building type can be selected, the interior lighting power allowance is calculated using the space-by-space method described in Article 4.2.1.6..",null,null,null,null,null,null,null,null,null,0]
[]
[]
["Explanation:"]
[]
[]
["13 - The interior lighting power allowance, using the building area method, is calculated by multiplying the lighting power density, by the gross lighted area, as required by 4.2.1.5.(5).. ",null,null,null,null,null,null,null,null,null,0]
[]
[]
["4.2.1.6. Calculation of Interior Lighting Power Allowance Using the Space-by-Space Method"]
["14 - The interior lighting power allowance using the space-by-space method is determined according to Sentence 4.2.1.6.(1)..",null,null,null,null,null,null,null,null,null,0]
[]
[]
["Explanation:"]
[]
[]
[]
["4.2.2. Interior Lighting Controls "]
["4.2.2.1. Automatic Lighting Shut-off Controls"]
["15 - Interior lighting is controlled with automatic shut off controls in all spaces, meeting the requirements of Sentence 4.2.2.1.(1)..",null,null,null,null,null,null,null,null,null,1]
[]
[]
["Explanation:"]
[]
[]
["Exemption 1: Shut-off controls are not required for round the clock operational requirements, where patient care is rendered, and where an automatic shut-off would endanger the safety or security application covered by Sentence 4.2.2.1.(4).."]
[]
[]
["16 - The automatic control devices referred to in Sentence 4.2.2.1.(1), are of either types described in Sentence 4.2.2.1.(2)..",null,null,null,null,null,null,null,null,null,0]
[]
[]
["Explanation:"]
[]
[]
["17 - Time-of-day operated control devices comply with the override requirement of Sentence 4.2.2.1.(3)..",null,null,null,null,null,null,null,null,null,0]
[]
[]
["Explanation:"]
[]
[]
["4.2.2.2. Lighting Controls in Enclosed Spaces"]
["18 - Each enclosed space has at least one control device, for the maximum area, meeting the requirements of Sentence 4.2.2.2.(1)..",null,null,null,null,null,null,null,null,null,0]
[]
[]
["19 - The control device required in Sentence 4.2.2.2.(1)., are either occupant sensors meeting the requirement of Sentence 4.2.2.2.(2)., or control devices meeting the requirement of Sentence 4.2.2.2.(2)..",null,null,null,null,null,null,null,null,null,0]
[]
[]
["20 - Bathrooms in guest rooms of commercial temporary lodgings have control devices for bathroom lighting meeting Sentence 4.2.2.2.(3)..",null,null,null,null,null,null,null,null,null,0]
[]
[]
["Exemption 1: Night lighting not exceeding 5 W, as required by Sentence 4.2.2.2.(3).."]
[]
[]
["4.2.2.3. Additional Requirement for Lighting Controls"]
["21 - Lighting controls provided in accordance with Articles 4.2.2.1. and 4.2.2.2. are located and readily accessible to meet the requirements of Sentence 4.2.2.3.(1)..",null,null,null,null,null,null,null,null,null,0]
[]
[]
["Explanation:"]
[]
[]
["Permission 1: Lighting controls are permitted to be installed in remote locations under conditions included in Sentence 4.2.2.3.(2).."]
[]
[]
["22 - Supplemental task lighting, has a control devices meeting the requirements of Sentence 4.2.2.3.(4)..",null,null,null,null,null,null,null,null,null,0]
[]
[]
["23 - Lighting controls installed in remote locations have an indicator pilot light, and a label as required by Sentence 4.2.2.3.(3)..",null,null,null,null,null,null,null,null,null,0]
[]
[]
["Explanation:"]
[]
[]
["24 - Guest rooms in commercial temporary lodgings have one or more control devices at the entrance door that collectively control luminaires, as required by Sentence 4.2.2.3.(5).. ",null,null,null,null,null,null,null,null,null,0]
[]
[]
["Explanation:"]
[]
[]
["Exemption 1: Luminaires in bathrooms, according to Sentence 4.2.2.3.(5).."]
[]
[]
["25 - Hotel suites have control devices meeting the requirements of Sentence 4.2.2.3.(5) at a location required by Sentence 4.2.2.3.(6)..",null,null,null,null,null,null,null,null,null,0]
[]
[]
["Explanation:"]
[]
[]
["26 - The lighting applications listed in Sentence 4.2.2.3.(7)., have separate contol devices.",null,null,null,null,null,null,null,null,null,0]
[]
[]
["27 - Where lighting controls are grouped, each control is labelled as required by Sentence 4.2.2.4.(8)..",null,null,null,null,null,null,null,null,null,0]
[]
[]
["Explanation:"]
[]
[]
["4.2.2.4. Automatic Daylighting Controls for Toplighting"]
["28 - When the total daylighted area under skylights, and under rooftop monitors in an enclosed space exceeds 400 m2, the electric general lighting over the daylighted area is separately controlled by at least one multi-level photocontrol having the characteristics to meet the requirements of Sentence 4.2.2.4.(1)..",null,null,null,null,null,null,null,null,null,0]
[]
[]
["Explanation:"]
[]
[]
["Exemption 1: The requirements of Sentence 4.2.2.4.(1)., do not apply to the shading, effective aperture cases or locations in Sentence 4.2.2.4.(2).."]
[]
[]
["4.2.2.5. Determination of Daylighted Area Under Skylights"]
["29 - The daylighted area under skylights is calculated considered the combined daylighted overlapping areas, as required by 4.2.2.5.(1)..",null,null,null,null,null,null,null,null,null,0]
[]
[]
["Explanation:"]
[]
[]
["30 - The daylighted area under each skylight is calculated as the area of the skylight’s projection as required by Sentence 4.2.2.5.(2)..",null,null,null,null,null,null,null,null,null,0]
[]
[]
["4.2.2.6. Determination of Daylighting Area Under Rooftop Monitors"]
["31 - The daylighted area under rooftop monitors is that calculated as required by Sentence 4.2.2.6.(1)..",null,null,null,null,null,null,null,null,null,0]
[]
[]
["Explanation:"]
[]
[]
["32 - The daylighted area under each rooftop monitor is calculated as the product of the width of the vertical glazing above the ceiling and the smallest of the horizontal distances with the heights and distances measured as required by Sentence 4.2.2.6.(2)..",null,null,null,null,null,null,null,null,null,0]
[]
[]
["4.2.2.7. Calculation of Skylight Effective Aperture"]
["33 - The skylight effective aperture is calculated using the equation listed in Sentence 4.2.2.7.(1)..",null,null,null,null,null,null,null,null,null,0]
[]
[]
["Explanation:"]
[]
[]
["4.2.2.8. Automatic Daylighting Controls for Primary Sidelighted Areas"]
["34 - When the combined primary sidelighted areas, in an enclosed space exceeds 100 m2, the electric general lighting over the primary sidelighted area is separately controlled by at least one multi-level photocontrol having the characteristics meeting the requirements of Sentence 4.2.2.8.(1)..",null,null,null,null,null,null,null,null,null,0]
[]
[]
["Explanation:"]
[]
[]
["Exemption 1: The requirements of Sentence 4.2.2.8.(1). do not apply to primary sidelighted areas in retail spaces, and where the sidelighting effective aperature is less than 0.1 (10%), and where the tops of the existing adjacent buildings meet the minimum height requirements, according to Sentence 4.2.2.8.(2).."]
[]
[]
["4.2.2.9. Determination of Primary Sidelighted Areas"]
["35 - The total primary sidelighted area is calculated according to Sentence 4.2.2.9.(1)..",null,null,null,null,null,null,null,null,null,0]
[]
[]
["36 - Each primary sidelighted area is calculated according to Sentence 4.2.2.9.(2)..",null,null,null,null,null,null,null,null,null,0]
[]
[]
["37 - The width of the primary sidelighted area is calculated according to Sentence 4.2.2.9.(3)..",null,null,null,null,null,null,null,null,null,0]
[]
[]
["38 - The depth of the primary sidelighted area is calculated according to Sentence 4.2.2.9.(4)..",null,null,null,null,null,null,null,null,null,0]
[]
[]
["4.2.2.10. Calculation of Sidelighting Effective Aperture"]
["39 - The sidelighting effective aperture is calculated according to the equation in Sentence 4.2.2.10.(1)..",null,null,null,null,null,null,null,null,null,0]
[]
[]
[]
["4.2.3. Exterior Lighting Power"]
["4.2.3.1. Exterior Lighting"]
["40 - Exterior lighting allowances are based on the lighting zone in which the building is located, as determined from Table 4.2.3.1.A. as required by 4.2.3.1.(1)..",null,null,null,null,null,null,null,null,null,0]
[]
[]
["41 - The basic site allowance to be applied in the calculation of maximum connected exterior lighting power in Sentences 4.2.3.1.(3) and 4.2.3.1.(4) does not exceed the limits specified in Table 4.2.3.1.B. as required by 4.2.3.1.(2)..",null,null,null,null,null,null,null,null,null,0]
[]
[]
["42 - The exterior lighting power for each specific building exterior is determined according to Sentence 4.2.3.1.(3)..",null,null,null,null,null,null,null,null,null,0]
[]
[]
["Explanations:"]
[]
[]
["Exemption 1: Where the lighting is equipped with an independent control device that complies with Sentence 4.2.4, the special exterior lighting applications listed in Sentences 4.2.3.1.(5) need not comply with the requirements of Sentences 4.2.3.1.(1) to (4) (inclusively).",null,null,null,null,null,null,null,null,null,"Exemption 1: Where the lighting is equipped with an independent control device that complies with sentence 4.2.4, the special exterior lighting applications listed in Sentence 4.2.3.1.(5)., need not comply with the requirements of Sentences 4.2.3.1.(1) to (4) (inclusively)."]
[]
[]
["43 - The connected exterior lighting power for all general building exterior applications not listed in Table 4.2.3.1.C. that are to be illuminated is determined as required by Sentence 4.2.3.1.(5)., ",null,null,null,null,null,null,null,null,null,1]
[]
[]
["Explanations:"]
[]
[]
["Exemption 1: Where the lighting is equiped with a special exterior lighting applications listed in Sentence 4.2.3.1.(5)., the special exterior lighting applications need not comply with the requirements of Sentences 4.2.3.1.(1) to (4) (inclusively)."]
[]
[]
[]
["4.2.4. Exterior Lighting Controls"]
["4.2.4.1. Requirements"]
["44 - Applicable exterior lighting is controlled either by astronomical time controls, photosensors, a combination of photosensors and timer shut-off switch, or other types of controls that perform the same function as the aforementioned controls types, as required by Sentence 4.2.4.1.(1)..",null,null,null,null,null,null,null,null,null,0]
[]
[]
["Exemption 1: Exterior lighting for covered vehicle exterior entrances, exterior exits from buildings or parking structures need not comply with Sentences 4.2.4.1.(1) and (2) where it is required for reasons provided by 4.2.4.1.(3).."]
[]
[]
["45 - Applicable exterior lighting designated for dusk-to-dawn operation is controlled by  astronomical time controls, or photosensors, as required by Sentence 4.2.4.1.(2)..",null,null,null,null,null,null,null,null,null,0]
[]
[]
["Exemption 1: Exterior lighting for covered vehicle exterior entrances, exterior exits from buildings or parking structures need not comply with Sentences 4.2.4.1.(1) and (2) where it is required for reasons provided by 4.2.4.1.(3).."]
[]
[]
["46 - All lighting schedule controllers are equipped with backup provisions for at least 10 h during a power outage, meeting the requirements of Sentence 4.2.4.1.(4)..",null,null,null,null,null,null,null,null,null,0]
[]
[]
["Explanation: "]

{"sheet":"Lighting Trade-off Path","index":6,"n_rows":271,"n_cols":11,"rows_kept":271,"cut":false,"hidden":true,"merged":[[71,9,73,9],[74,9,76,9],[78,9,80,9],[134,9,136,9],[137,9,139,9],[116,9,118,9],[119,9,121,9],[166,9,171,9],[239,9,244,9],[245,9,250,9],[251,9,256,9],[257,9,262,9],[82,9,87,9],[88,9,93,9],[103,9,108,9],[109,9,114,9],[122,9,127,9],[128,9,133,9],[141,9,146,9],[147,9,152,9],[153,9,158,9],[159,9,164,9],[172,9,177,9],[178,9,183,9],[205,9,210,9],[216,9,221,9],[188,9,190,9],[264,9,266,9],[267,9,269,9],[270,9,272,9],[6,0,13,8],[222,9,224,9],[225,9,227,9],[229,9,231,9],[242,0,244,8],[248,0,250,8],[254,0,256,8],[260,0,262,8],[233,9,235,9],[236,9,238,9],[185,9,187,9],[194,9,196,9],[197,9,199,9],[201,9,203,9],[208,0,210,8],[212,9,214,9],[95,9,97,9],[99,9,101,9],[37,9,39,9],[58,9,60,9],[61,9,63,9],[216,0,218,8],[71,0,73,8],[74,0,76,8],[82,0,84,8],[58,0,60,8],[61,0,63,8],[95,0,97,8],[137,0,139,8],[115,0,115,8],[116,0,118,8],[119,0,121,8],[122,0,124,8],[128,0,130,8],[125,0,127,8],[131,0,133,8],[98,0,98,8],[99,0,101,8],[77,0,77,8],[106,0,108,8],[109,0,111,8],[112,0,114,8],[134,0,136,8],[78,0,80,8],[81,0,81,8],[201,0,203,8],[200,0,200,8],[204,0,204,8],[205,0,207,8],[172,0,174,8],[85,0,87,8],[91,0,93,8],[212,0,214,8],[211,0,211,8],[140,0,140,8],[141,0,143,8],[185,0,187,8],[194,0,196,8],[191,0,191,8],[193,0,193,8],[165,0,165,8],[166,0,168,8],[102,0,102,8],[103,0,105,8],[197,0,199,8],[88,0,90,8],[144,0,146,8],[150,0,152,8],[156,0,158,8],[215,0,215,8],[219,0,221,8],[169,0,171,8],[175,0,177,8],[181,0,183,8],[192,0,192,8],[270,0,272,8],[263,0,263,8],[264,0,266,8],[236,0,238,8],[239,0,241,8],[245,0,247,8],[251,0,253,8],[257,0,259,8],[225,0,227,8],[228,0,228,8],[229,0,231,8],[232,0,232,8],[233,0,235,8],[267,0,269,8],[188,0,190,8],[178,0,180,8],[184,0,184,8],[222,0,224,8],[40,9,45,9],[46,9,51,9],[65,9,67,9],[64,0,64,8],[65,0,67,8],[68,0,68,8],[69,0,69,8],[4,0,5,8],[34,0,34,8],[35,0,35,8],[36,0,36,8],[37,0,39,8],[40,0,42,8],[14,0,15,8],[43,0,45,8],[49,0,51,8],[19,0,19,8],[20,0,22,8],[20,9,31,9],[23,0,25,8],[26,0,28,8],[29,0,31,8],[18,0,18,8],[52,9,57,9],[162,0,164,8],[159,0,161,8],[94,0,94,8],[0,0,0,1],[0,2,0,8],[1,0,1,1],[1,2,1,8],[2,0,3,8],[70,0,70,8],[16,0,17,2],[16,3,17,8],[32,0,33,8],[52,0,54,8],[55,0,57,8],[46,0,48,8],[147,0,149,8],[153,0,155,8]]}
["Project Name",null,{"$f":"'Compliance Documents Checklist'!C1:I1","v":"Enter Project Name on 'How to Use this Document' tab"}]
["Contact Person",null,{"$f":"'Compliance Documents Checklist'!C2:F2","v":"Enter contact person name on 'How to Use this Document' tab"}]
[]
[]
["Section 4.1. General"]
[]
["Please enter here any building specific explanation with reference to the item number."]
[]
[]
[]
[]
[]
[]
[]
[]
[]
["Incomplete Items:",null,null,{"$f":"COUNTIF(K37:K273,0)","v":45}]
[]
[]
["4.1.1. General"]
["1 - This Section is complete for all applicable lighting components in the building, as required by 4.1.1.",null,null,null,null,null,null,null,null,null,0]
[]
[]
["Exemption 1: Emergency lighting meeting the requirements of 4.1.1.2.(2).(a)..",null,null,null,null,null,null,null,null,null,0]
[]
[]
["Exemption 2: Lighting within dwelling units, as per 4.1.1.2.(2).(b)..",null,null,null,null,null,null,null,null,null,0]
[]
[]
["Exemption 3: Where it is impractical, according to 4.1.1.2.(2).(c).."]
[]
[]
["Section 4.3. Trade-off Path"]
[]
[]
["4.3.1. General"]
["4.3.1.2. Limitation"]
["2 - This path is used for all interior lighting and controls, as required by Sentence 4.3.1.1.(1)..",null,null,null,null,null,null,null,null,null,0]
[]
[]
["3 - Power requirements for lighting units for exit signs conform to the standard listed in Sentence 4.2.1.1.(1)..",null,null,null,null,null,null,null,null,null,0]
[]
[]
["Explanation:"]
[]
[]
["4 a) - Fluorescent lamp ballasts conform to the standard listed in Sentence 4.2.1.2.(1)..",null,null,null,null,null,null,null,null,null,0]
[]
[]
["Explanation:"]
[]
[]
["4 b) - Applicable electronic florescent lamp ballasts conform to the standard listed in Sentence 4.2.1.2.(2).."]
[]
[]
["Explanation:"]
[]
[]
["5 - Exterior lighting power conforms to the requirements of Subsection 4.2.3..",null,null,null,null,null,null,null,null,null,0]
[]
[]
["6 - Exterior lighting controls conform to the requirements of Subsection 4.2.4..",null,null,null,null,null,null,null,null,null,0]
[]
[]
["4.3.1.3. Compliance"]
["7 - The installed interior lighting energy (IILE) in the proposed building calculated in accordance with Subsection 4.3.2. is less than or equal to the interior lighting energy allowance (ILEA) calculated in accordance with Subsection 4.3.3..",null,null,null,null,null,null,null,null,null,0]
[]
[]
[]
["4.3.2. Installed Interior Lighting Energy"]
["4.3.2.1. Determination of Installed Interior Lighting Energy"]
["8 - The installed interior lighting energy, IILE, in (W·h)/a, is calculated using the equations in Article 4.3.2.1..",null,null,null,null,null,null,null,null,null,0]
[]
[]
["9 - The installed interior lighting energy, IILE is",null,null,null,null,null,null,null,null,null,1]
[]
[]
["4.3.2.2. Determination of Lighting Power Density"]
["10 - The lighting power density for a space, pi, in W/m2, is calculated using the equation in Sentence 4.3.2.2.(1)..",null,null,null,null,null,null,null,null,null,0]
[]
[]
["4.3.2.3. Determination of Daylighted Area"]
["11 - The daylighted areas of a space for skylights, for toplighting and for sidelighting, are calculated as required by Sentence 4.3.2.3.(1)..",null,null,null,null,null,null,null,null,null,0]
[]
[]
["Explanation:"]
[]
[]
["12 - Where a space is illuminated by both sidelighting and toplighting, the daylighted area provided by only one of these daylight supplies are determined and used in the daylighting calculations as required by 4.3.2.3.(2)..",null,null,null,null,null,null,null,null,null,0]
[]
[]
["Explanation:"]
[]
[]
["4.3.2.4. Determination of Non-Daylighted Area"]
["13 - The non-daylighted area of a space, ANDL,i, in m2, is calculated using the equation in Sentence 4.3.2.4.(1)..",null,null,null,null,null,null,null,null,null,0]
[]
[]
["4.3.2.5. Determination of Effective Annual Operational Times"]
["14 - The effective annual daytime operational time of the daylighted area, teff,day,DL,i, in h/a, is calculated using the equations in Article 4.3.2.5..",null,null,null,null,null,null,null,null,null,0]
[]
[]
["4.3.2.6. Determination of Operational Times"]
["15 - The annual operational time of each space during daytime, tday,i, is determined using Table 4.3.2.6.A., as required by Sentence 4.3.2.6.(1)..",null,null,null,null,null,null,null,null,null,0]
[]
[]
["Exemption 1: If the building operates for more or less than the default 250 days per year, the data provided in Tables 4.3.2.6.A. and 4.3.2.6.B. is adjusted using the equation in Sentence 4.3.2.6.(3).."]
[]
[]
["16 - The annual operational time of each space during nighttime, tnight,i, shall be determined using Table 4.3.2.6.B., as required by Sentence 4.3.2.6.(2)..",null,null,null,null,null,null,null,null,null,0]
[]
[]
["Exemption 1: If the building operates for more or less than the default 250 days per year, the data provided in Tables 4.3.2.6.A. and 4.3.2.6.B. is adjusted using the equation in Sentence 4.3.2.6.(3).."]
[]
[]
["4.3.2.7. Determination of Factor for Daylight Harvesting"]
["17 - The factor for daylight harvesting, FDL,i, is calculated using the equation in Sentence 4.3.2.7.(1)..",null,null,null,null,null,null,null,null,null,0]
[]
[]
["18 - As required by Sentence 4.3.2.7.(2)., for spaces with no daylight supply, the factor for daylight harvesting, FDL,i is 0.",null,null,null,null,null,null,null,null,null,0]
[]
[]
["19 - Where sidelighting is the primary daylight supply, the daylight supply factor, CDL,sup,i, is determined as required by Sentence 4.3.2.7.(3)..",null,null,null,null,null,null,null,null,null,0]
[]
[]
["Explanation:"]
[]
[]
["20 - Where toplighting is the primary daylight supply, the daylight supply factor CDL,sup,i, is determined as required by Sentence 4.3.2.7.(4)..",null,null,null,null,null,null,null,null,null,0]
[]
[]
["Explanation:"]
[]
[]
["21 - The daylight system control factor, CDL,ctrl,i, is selected from Table 4.3.2.7.A., as required by Sentence 4.3.2.7.(5)..",null,null,null,null,null,null,null,null,null,0]
[]
[]
["22- The daylight-dependent control factor for electric lighting, CEL,ctrl,i, is selected from Table 4.3.2.7.B., as required by Sentence 4.3.2.7.(6)..",null,null,null,null,null,null,null,null,null,0]
[]
[]
["4.3.2.8. Determination of the Daylight Supply Factor for Sidelighting"]
["23 - For spaces where sidelighting is the primary daylight supply, the daylight supply factor, CDL,sup,i, is calculated using the equation in Sentence 4.3.2.8.(1)..",null,null,null,null,null,null,null,null,null,0]
[]
[]
["Explanation:"]
[]
[]
["24 - The effective luminous transmittance of the fenestration providing sidelighting, τeff,i, is calculated using the equation in Sentence 4.3.2.8.(2)..",null,null,null,null,null,null,null,null,null,0]
[]
[]
["Explanation:"]
[]
[]
["25 - The raw daylight supply factor for the rough opening, CDL,sup,raw,i, is determined using Table 4.3.2.8, as required by Sentence 4.3.2.8.(3)..",null,null,null,null,null,null,null,null,null,0]
[]
[]
["Explanation:"]
[]
[]
["26 - The factor to account for horizontal obstructions, fobst,i, is calculated using the equation in Sentence 4.3.2.8.(4)..",null,null,null,null,null,null,null,null,null,0]
[]
[]
["Explanation:"]
[]
[]
["4.3.2.9. Determination of the Daylight Supply Factor for Toplighting"]
["27 - Where toplighting is the primary daylight supply, the daylight supply factor, CDL,sup,i, is determined using Table 4.3.2.9.A., as required by Sentence 4.3.2.9.(1)..",null,null,null,null,null,null,null,null,null,0]
[]
[]
["Explanation:"]
[]
[]
["28 - The mean daylight factor for toplighting, Di, is calculated using the equation in Sentence 4.3.2.9.(2)..",null,null,null,null,null,null,null,null,null,0]
[]
[]
["Explanation:"]
[]
[]
["29 - The room cavity ratio, RCR, is calculated using the equation in Sentence 4.3.2.9.(3)..",null,null,null,null,null,null,null,null,null,0]
[]
[]
["Explanation:"]
[]
[]
["4.3.2.10. Determination of Factors for Occupancy Control and Personal Control"]
["30 a) - The factor for occupancy control, Focc,i, is calculated using the equation in Sentence 4.3.2.10.(1)..",null,null,null,null,null,null,null,null,null,0]
[]
[]
["30 b) - The factor for personal control, Fpres,I, is calculated using the equation in Sentence 4.3.2.10.(2).."]
[]
[]
[]
["4.3.3. Interior Lighting Energy Allowance"]
["4.3.3.1. Determination of Interior Lighting Energy Allowance"]
["31 - The interior lighting energy allowance, ILEA, in (W·h)/a, determined using the space-by-space method in Article 4.2.1.6. and with the prescriptive lighting controls in Subsection 4.2.2., is calculated using the equations in Article 4.3.3.1..",null,null,null,null,null,null,null,null,null,0]
[]
[]
["32 - The interior lighting energy allowance, ILEA is:",null,null,null,null,null,null,null,null,null,1]
[]
[]
["4.3.3.2. Determination of Lighting Power Density"]
["33 - The lighting power density for a space, LPDi, is determined using Table 4.2.1.6., as required by Sentence 4.3.3.2.(1)..",null,null,null,null,null,null,null,null,null,0]
[]
[]
["4.3.3.3. Determination of Daylighted Area"]
["34 - The daylighted area of a space, ADL,i, in m2, is determined as required by Sentence 4.3.3.3.(1)..",null,null,null,null,null,null,null,null,null,0]
[]
[]
["Explanation:"]
[]
[]
["4.3.3.4. Determination of Non-Daylighted Area"]
["35 - The non-daylighted area of a space, ANDL,i, in m2, is calculated using the equation in Sentence 4.3.3.4.(1)..",null,null,null,null,null,null,null,null,null,0]
[]
[]
["4.3.3.5. Determination of Effective Annual Operational Times"]
["36 - The effective annual daytime operational time of the daylighted area, teff,day,DL,i, in h/a, is calculated using the equation in Sentence 4.3.3.5.(1)..",null,null,null,null,null,null,null,null,null,0]
[]
[]
["Explanation:"]
[]
[]
["37 - The effective annual daytime operational time of the non-daylighted area, teff,day,NDL,i, in h/a, is calculated using the equation in Sentence 4.3.3.5.(2)..",null,null,null,null,null,null,null,null,null,0]
[]
[]
["38 - The effective annual nighttime operational time, teff,night,i, in h/a, is calculated using the equation in Sentence 4.3.3.5.(3)..",null,null,null,null,null,null,null,null,null,0]
[]
[]
["4.3.3.6. Determination of Operational Times"]
["39 - Annual operational times, tday,i and tnight,i, is determined as required by Sentence 4.3.3.6.(1)..",null,null,null,null,null,null,null,null,null,0]
[]
[]
["4.3.3.7. Determination of Factor for Daylight Harvesting"]
["40 - The factor for daylight harvesting, FDL,i, is determined using the equation in Sentence 4.3.3.7.(1)..",null,null,null,null,null,null,null,null,null,0]
[]
[]
["41 - For spaces with no daylight supply, the factor for daylight harvesting, FDL,i, is 0, as required by 4.3.3.7.(2)..",null,null,null,null,null,null,null,null,null,0]
[]
[]
["42 - Where sidelighting is the primary daylight supply, the daylightsupply factor, CDL,sup,i, is determined as required by Sentence 4.3.3.7.(3)..",null,null,null,null,null,null,null,null,null,0]
[]
[]
["Explanation:"]
[]
[]
["43 - Where toplighting is the primary daylight supply, the daylight supply factor, CDL,sup,i, is determined as required by Sentence 4.3.3.7.(4)..",null,null,null,null,null,null,null,null,null,0]
[]
[]
["Explanation:"]
[]
[]
["44 - The daylight system control factor, CDL,ctrl,i, is determined using Table 4.3.2.7.A. based on the minimum requirement for the applicable space according to the prescriptive path, as required by Sentence 4.3.3.7.(5)..",null,null,null,null,null,null,null,null,null,0]
[]
[]
["Explanation:"]
[]
[]
["45 - The daylight-dependent control factor for electric lighting, CEL,ctrl,i, is determined using Table 4.3.2.7.B. based on the minimum requirement for the\napplicable space in the prescriptive path, as required by Sentence 4.3.3.7.(6)..",null,null,null,null,null,null,null,null,null,0]
[]
[]
["Explanation:"]
[]
[]
["4.3.3.10. Determination of Factors for Occupancy Control and Personal Control"]
["46 - The factor for occupancy control, Focc,i,, is calculated using the equation in Sentence 4.3.3.10.(1)..",null,null,null,null,null,null,null,null,null,0]
[]
[]
["47 - The factor for personal control, Fpers,i, is set to 1, according to Sentence 4.3.3.10.(2)..",null,null,null,null,null,null,null,null,null,0]
[]
[]
["48 - The installed interior lighting energy (IILE) in the proposed building less than or equal to the interior lighting energy allowance (ILEA).",null,null,null,null,null,null,null,null,null,0]

{"sheet":"HVAC - Prescriptive","index":7,"n_rows":741,"n_cols":11,"rows_kept":741,"cut":false,"hidden":true,"merged":[[720,4,720,6],[45,0,47,8],[54,0,56,8],[61,0,63,8],[45,9,47,9],[54,9,56,9],[61,9,63,9],[710,4,710,6],[710,2,710,3],[610,9,612,9],[381,9,383,9],[385,9,387,9],[388,9,390,9],[391,9,393,9],[395,9,409,9],[411,9,413,9],[414,9,416,9],[417,9,419,9],[328,9,330,9],[620,9,631,9],[632,9,634,9],[635,9,637,9],[638,9,640,9],[641,9,643,9],[725,2,725,3],[725,4,725,6],[577,0,579,8],[718,4,718,6],[716,4,716,6],[716,2,716,3],[452,9,457,9],[459,9,461,9],[708,2,708,3],[709,2,709,3],[706,4,706,6],[707,4,707,6],[698,9,703,9],[462,9,470,9],[658,9,660,9],[661,9,663,9],[677,9,688,9],[692,9,697,9],[613,9,618,9],[670,9,675,9],[664,9,669,9],[719,2,719,3],[719,4,719,6],[720,2,720,3],[739,9,741,9],[729,9,734,9],[736,9,738,9],[732,0,734,8],[729,0,731,8],[735,0,735,8],[736,0,738,8],[739,0,741,8],[580,9,585,9],[586,9,591,9],[592,9,597,9],[601,9,609,9],[715,2,715,3],[715,4,715,6],[717,2,717,3],[717,4,717,6],[713,4,713,6],[713,2,713,3],[712,4,712,6],[712,2,712,3],[711,4,711,6],[711,2,711,3],[706,2,706,3],[707,2,707,3],[644,9,649,9],[651,9,653,9],[654,9,656,9],[369,9,371,9],[375,9,377,9],[378,9,380,9],[542,9,544,9],[545,9,553,9],[555,9,557,9],[484,9,492,9],[493,9,501,9],[505,9,510,9],[472,9,474,9],[475,9,483,9],[427,9,432,9],[558,9,560,9],[561,9,566,9],[568,9,573,9],[574,9,579,9],[338,9,343,9],[347,9,352,9],[354,9,362,9],[365,9,367,9],[182,9,187,9],[188,9,193,9],[197,9,202,9],[203,9,205,9],[206,9,211,9],[213,9,218,9],[220,9,225,9],[229,9,234,9],[238,9,243,9],[250,9,264,9],[269,9,280,9],[281,9,286,9],[293,9,295,9],[297,9,299,9],[301,9,315,9],[316,9,318,9],[319,9,324,9],[325,9,327,9],[332,9,337,9],[128,9,133,9],[137,9,142,9],[144,9,149,9],[151,9,156,9],[163,9,165,9],[166,9,168,9],[51,9,53,9],[58,9,60,9],[65,9,79,9],[80,9,82,9],[84,9,89,9],[90,9,95,9],[97,9,111,9],[112,9,117,9],[118,9,123,9],[19,9,30,9],[31,9,36,9],[37,9,38,9],[42,9,44,9],[658,0,660,8],[667,0,669,8],[673,0,675,8],[677,0,679,8],[680,0,682,8],[465,0,467,8],[478,0,480,8],[481,0,483,8],[487,0,489,8],[490,0,492,8],[496,0,498,8],[508,0,510,8],[517,0,519,8],[526,0,528,8],[335,0,337,8],[341,0,343,8],[350,0,352,8],[357,0,359,8],[360,0,362,8],[401,0,403,8],[709,4,709,6],[728,0,728,8],[651,0,653,8],[654,0,656,8],[657,0,657,8],[661,0,663,8],[664,0,666,8],[650,0,650,8],[726,0,727,8],[714,2,714,3],[714,4,714,6],[670,0,672,8],[676,0,676,8],[683,0,685,8],[689,0,689,8],[690,0,690,8],[692,0,694,8],[691,0,691,8],[698,0,700,8],[704,0,705,8],[686,0,688,8],[695,0,697,8],[701,0,703,8],[718,2,718,3],[353,0,353,8],[344,0,344,8],[345,0,345,8],[346,0,346,8],[301,0,303,8],[708,4,708,6],[589,0,591,8],[595,0,597,8],[604,0,606,8],[607,0,609,8],[616,0,618,8],[623,0,625,8],[629,0,631,8],[644,0,646,8],[647,0,649,8],[598,0,598,8],[641,0,643,8],[354,0,356,8],[363,0,363,8],[373,0,373,8],[372,0,372,8],[253,0,255,8],[247,0,247,8],[248,0,248,8],[249,0,249,8],[262,0,264,8],[268,0,268,8],[328,0,330,8],[331,0,331,8],[347,0,349,8],[40,0,40,8],[41,0,41,8],[42,0,44,8],[48,0,48,8],[49,0,49,8],[50,0,50,8],[51,0,53,8],[144,0,146,8],[143,0,143,8],[58,0,60,8],[64,0,64,8],[97,0,99,8],[77,0,79,8],[96,0,96,8],[57,0,57,8],[65,0,67,8],[112,0,114,8],[68,0,70,8],[84,0,86,8],[87,0,89,8],[93,0,95,8],[100,0,102,8],[109,0,111,8],[115,0,117,8],[430,0,432,8],[436,0,438,8],[442,0,444,8],[448,0,450,8],[455,0,457,8],[368,0,368,8],[369,0,371,8],[421,0,423,8],[365,0,367,8],[410,0,410,8],[404,0,406,8],[411,0,413,8],[414,0,416,8],[384,0,384,8],[385,0,387,8],[388,0,390,8],[407,0,409,8],[398,0,400,8],[417,0,419,8],[445,0,447,8],[0,0,0,1],[0,2,0,8],[1,0,1,1],[19,0,21,8],[37,0,38,8],[39,0,39,8],[1,2,1,8],[14,0,15,8],[16,0,17,2],[16,3,17,8],[2,0,3,8],[4,0,5,8],[18,0,18,8],[22,0,24,8],[28,0,30,8],[31,0,33,8],[34,0,36,8],[25,0,27,8],[6,0,13,8],[635,0,637,8],[638,0,640,8],[632,0,634,8],[529,0,531,8],[523,0,525,8],[471,0,471,8],[472,0,474,8],[475,0,477,8],[502,0,502,8],[503,0,503,8],[499,0,501,8],[586,0,588,8],[592,0,594,8],[511,0,511,8],[512,0,512,8],[513,0,513,8],[514,0,516,8],[541,0,541,8],[542,0,544,8],[545,0,547,8],[551,0,553,8],[554,0,554,8],[571,0,573,8],[583,0,585,8],[439,0,441,8],[514,9,522,9],[523,9,528,9],[529,9,534,9],[535,9,540,9],[433,9,438,9],[439,9,444,9],[445,9,450,9],[459,0,461,8],[468,0,470,8],[493,0,495,8],[451,0,451,8],[452,0,454,8],[458,0,458,8],[462,0,464,8],[520,0,522,8],[532,0,534,8],[535,0,537,8],[538,0,540,8],[421,9,426,9],[137,0,139,8],[118,0,120,8],[121,0,123,8],[131,0,133,8],[265,0,267,8],[250,0,252,8],[140,0,142,8],[147,0,149,8],[166,0,168,8],[213,0,215,8],[219,0,219,8],[154,0,156,8],[185,0,187,8],[188,0,190,8],[191,0,193,8],[325,0,327,8],[375,0,377,8],[378,0,380,8],[424,0,426,8],[256,0,258,8],[259,0,261,8],[272,0,274,8],[275,0,277,8],[150,0,150,8],[151,0,153,8],[157,0,159,8],[163,0,165,8],[304,0,306,8],[307,0,309,8],[310,0,312,8],[80,0,82,8],[175,0,177,8],[181,0,181,8],[196,0,196,8],[197,0,199,8],[182,0,184,8],[127,0,127,8],[128,0,130,8],[278,0,280,8],[284,0,286,8],[203,0,205,8],[206,0,208,8],[209,0,211,8],[216,0,218,8],[223,0,225,8],[229,0,231,8],[232,0,234,8],[561,0,563,8],[558,0,560,8],[564,0,566,8],[555,0,557,8],[548,0,550,8],[427,0,429,8],[433,0,435,8],[71,0,73,8],[74,0,76,8],[83,0,83,8],[90,0,92,8],[103,0,105,8],[106,0,108,8],[391,0,393,8],[394,0,394,8],[194,0,194,8],[195,0,195,8],[296,0,296,8],[300,0,300,8],[316,0,318,8],[269,0,271,8],[297,0,299,8],[169,0,171,8],[200,0,202,8],[157,9,162,9],[169,9,174,9],[172,0,174,8],[178,0,180,8],[175,9,180,9],[381,0,383,8],[212,0,212,8],[420,0,420,8],[281,0,283,8],[319,0,321,8],[290,0,290,8],[291,0,291,8],[292,0,292,8],[293,0,295,8],[313,0,315,8],[220,0,222,8],[238,0,240,8],[322,0,324,8],[374,0,374,8],[332,0,334,8],[338,0,340,8],[364,0,364,8],[395,0,397,8],[241,0,243,8],[722,2,722,3],[723,2,723,3],[722,4,722,6],[723,4,723,6],[724,2,724,3],[724,4,724,6],[721,2,721,3],[721,4,721,6],[160,0,162,8],[626,0,628,8],[504,0,504,8],[505,0,507,8],[484,0,486,8],[599,0,599,8],[600,0,600,8],[601,0,603,8],[610,0,612,8],[613,0,615,8],[619,0,619,8],[620,0,622,8],[567,0,567,8],[568,0,570,8],[580,0,582,8],[574,0,576,8]]}
["Project Name",null,{"$f":"'Compliance Documents Checklist'!C1:I1","v":"Enter Project Name on 'How to Use this Document' tab"}]
["Contact Person",null,{"$f":"'Compliance Documents Checklist'!C2:F2","v":"Enter contact person name on 'How to Use this Document' tab"}]
[]
[]
["Section 5.1. General"]
[]
["Please enter here any building specific explanation with reference to the item number."]
[]
[]
[]
[]
[]
[]
[]
[34]
[]
["Incomplete Items"]
[]
[]
["1 -  This Section is complete for all systems heating, ventilating and air conditioning (HVAC) systems covered by the NECB, in the building.",null,null,null,null,null,null,null,null,null,0]
[]
[]
["Exemption 1: HVAC systems used exclusively for the control of smoke, according to 5.1.1.2.(1)..",null,null,null,null,null,null,null,null,null,0]
[]
[]
["Exemption 2: Where it can be shown that the nature of the occupancy, or that the type of HVAC system makes it impractical to apply the requirement of this Part, according to Sentence 5.1.1.2.(2).."]
[]
[]
["Exemption 3: Existing HVAC systems that are extended to serve additions, according to Sentence 5.1.1.3.(2).."]
[]
[]
["2 - This Section is completed for all back-up HVAC systems covered by the NECB, in the building.",null,null,null,null,null,null,null,null,null,0]
[]
[]
["Explanation:"]
[]
[]
["Section 5.2. Prescriptive Path"]
[]
[]
["5.2.1. Equipment Sizing "]
["5.2.1.1. Load Calculations"]
["3 - HVAC systems are sized in accordance with good engineering practice such as that described in Sentence 5.2.1.1.(1)..",null,null,null,null,null,null,null,null,null,0]
[]
[]
[]
[]
[]
[]
["5.2.2. Air Distribution Systems"]
["5.2.2.1. Design and Installation of Ducts"]
["4 - Ducts are designed and installed in accordance with the NBC, according to the requirements of Sentence 5.2.2.1.(1)..",null,null,null,null,null,null,null,null,null,0]
[]
[]
[]
[]
[]
["5.2.2.2. Provision for Balancing"]
["5 - All air distribution systems are designed such that they can be balanced.",null,null,null,null,null,null,null,null,null,0]
[]
[]
[]
[]
[]
["5.2.2.3. Duct Sealing"]
["6 - Air-handling ducts and plenums forming part of an HVAC system is constructed, installed and sealed in accordance with Sentence 5.2.2.3.(1)..",null,null,null,null,null,null,null,null,null,0]
[]
[]
["Explanation:"]
[]
[]
["Exemption 1: Air-handling ducts and plenums that do not conform to Sentence 5.2.2.3.(1). , meet the requirements of Article 5.2.2.4.."]
[]
[]
["Exemption 2: Return ducts located within conditioned space or in spaces used as return air plenums need not comply with Sentence 5.2.2.3.(1)., according to Sentence 5.2.2.3.(3).."]
[]
[]
["Exemption 3: Except for supply ducts located upstream of zone coils, mixing boxes, variable-air-volume boxes and diffusers with integral variable-air-volume controls, supply ducts located within the conditioned space to which they supply air need not comply with Sentence 5.2.2.3.(1).."]
[]
[]
["7 - Sealing tape is not used as the primary sealant for air-handling ducts and plenums.",null,null,null,null,null,null,null,null,null,0]
[]
[]
["5.2.2.4. Leakage Testing of Duct"]
["8 - Where ducts are not constructed, installed and sealed in accordance with Sentence 5.2.2.3.(1), they meet the requirements of Sentence 5.2.2.4.(2)..",null,null,null,null,null,null,null,null,null,0]
[]
[]
["Explanation:"]
[]
[]
["9 - For ducts tested in accordance with Sentence 5.2.2.4.(1), the maximum permitted leakage is caculated according to the equation in Sentence 5.2.2.4.(2)..",null,null,null,null,null,null,null,null,null,0]
[]
[]
["Explanation:"]
[]
[]
["5.2.2.5. Duct and Plenum Insulation "]
["10 - All air-handling ducts, plenums and run-outs forming part of an HVAC system are insulated according to Sentence 5.2.2.5.(1). and Table 5.2.2.5..     ",null,null,null,null,null,null,null,null,null,0]
[]
[]
["Explanation:"]
[]
[]
["Exemption 1: Exhaust ducts, return ducts and plenums located within conditioned space need not comply with Sentence 5.2.2.5.(1).."]
[]
[]
["Exemption 2: Ducts and plenums located within conditioned space in a dwelling unit and serving only that dwelling unit need not comply with Sentence (1)."]
[]
[]
["Exemption 3: Factory-installed plenums and ducts, in accordance with Article 5.2.12.1., need not comply with Sentences 5.2.2.5.(1). and 5.2.2.5.(4)., provided they are insulated to a thermal resistance not less than specified in Sentence 5.2.2.5.(5).."]
[]
[]
["11 - Air handling ducts and plenums, forming part of HVAC systems, that are located outside the building envelope and are not as described in Sentece 5.2.2.5.(5)., are insulated to the same level as indicated in Subsection 3.2.2..",null,null,null,null,null,null,null,null,null,0]
[null,null,null,null,null,null,null,null,null,null,0]
[]
["Exemption 1: Relief and outside air ducts and factory installed ducts and plenums meeting Sentence 5.2.2.5.(5)., need not comply. "]
[]
[]
["12 - Insulation material is installed as per 5.2.2.5.(6)..",null,null,null,null,null,null,null,null,null,0]
[]
[]
["Explanation:"]
[]
[]
[]
[]
[]
["5.2.2.6. Protection of Duct Insulation"]
["13 - Insulation on cold-air supply ducts is provided with a vapour barrier to protect from condensation as described in Sentence 5.2.2.6.(1)..",null,null,null,null,null,null,null,null,null,0]
[]
[]
["Explanation:"]
[]
[]
[]
[]
[]
["14 - Duct insulation is installed to protect from mechanical damage or weathering, as required by 5.2.2.6.(2)..",null,null,null,null,null,null,null,null,null,0]
[]
[]
["Explanation:"]
[]
[]
["5.2.2.7. Cooling with Outdoor Air"]
["15 - Systems with mechanical cooling and an air handling capacity, as listed in Sentence 5.2.2.7.(1)., are designed to reduce mechanical cooling by either using an air economizer system or a water economizer system. ",null,null,null,null,null,null,null,null,null,0]
[]
[]
["Explanation:"]
[]
[]
["5.2.2.8. Cooling by Direct Use of Outdoor Air (Air Economizer System)",null,null,null,null,null,null,null,null,null,0]
["16 - HVAC systems that use less mechanical cooling energy by direct use of outdoor air are capable of mixing return air with up to 100% outdoor air to produce the temperature required, according to the requirements of Sentence 5.2.2.8.(1)..",null,null,null,null,null,null,null,null,null,1]
[null,null,null,null,null,null,null,null,null,null,0]
[]
["Permission 1: Direct expansion HVAC systems are permitted to include controls to reduce the quantity of outdoor air at the lowest stage of cooling equipment output as necessary according to the requirements of Sentence 5.2.2.8.(6).."]
[]
[]
["17 - Systems are designed to automatically revert to the minimum outdoor airflow (as prescribed by the NCB), when the return air temperature or is less than the outdoor air temperature or the return air enthalpy is less than the outdoor air enthalpy, according to the requirements of Sentence 5.2.2.8.(2)..",null,null,null,null,null,null,null,null,null,0]
[]
[]
["Explanation:"]
[]
[]
["18 - Systems are designed to mix outdoor air and return air to a temperature as near as possible to that required to condition the space, as indicated in Sentence 5.2.2.8.(3)..",null,null,null,null,null,null,null,null,null,0]
[]
[]
["19 -  Systems with cooling capacities of 70 kW or more, incorporate cooling equipment that can operate, with the lowest stage providing no more than 25% of the full capacity of each system, as required by Sentence 5.2.2.8.(4)..",null,null,null,null,null,null,null,null,null,0]
[]
[]
["20 - Systems with cooling capacities greater that 25 kW and less that 70 kW, incorporate cooling equipment that can operate at the lowest stage providing no more that 50 % of the full capacity of each system, as required by Sentence 5.2.2.8.(5)..",null,null,null,null,null,null,null,null,null,0]
[]
[]
["Explanation:"]
[]
[]
["21 - Applicable HVAC systems, including HVAC systems that provide cooling using direct expansion (DX) technologies, are designed and configured to reduce mechanical cooling by direct use of outdoor air, according to Article 5.2.2.8..",null,null,null,null,null,null,null,null,null,0]
[null,null,null,null,null,null,null,null,null,null,0]
[]
["Explanation:"]
[]
[]
["5.2.2.9. Cooling by Indirect Use of Outdoor Air (Water Economizer System)"]
["22 - HVAC systems that reduce mechanical cooling energy use by using outdoor air to chill cooling distribution fluid by direct expansion, indirect evaporation, or both, are capable of cooling supply air to provide 100% of the cooling load when the outdoor air temperature is 7°C or lower, as required by 5.2.2.9.(1).. ",null,null,null,null,null,null,null,null,null,0]
[]
[]
["Explanation:"]
[]
[]
["23 - HVAC systems that reduce mechanical cooling energy use by using outdoor air to chill cooling distribution fluid by sensible heat transfer are capable by of providing 100% of the cooling load when the outdoor air temperature is 10°C or lower, as required by 5.2.2.9.(2).",null,null,null,null,null,null,null,null,null,0]
[]
[]
["Explanation:"]
[]
[]
[]
["5.2.3. Fan System Design"]
["5.2.3.1. Application"]
["24 - Applicable fans, based on use and on total of all fan motor nameplate rating, according to the requirements of Article 5.2.3.1., are considered in answering the questions of Subsection 5.2.3. ",null,null,null,null,null,null,null,null,null,0]
[]
[]
["Explanation:"]
[]
[]
["25 - Power demand considered in this section is the sum of the demand of all fans required to operate at design conditions to supply air to the conditioned space.",null,null,null,null,null,null,null,null,null,0]
[]
[null,null,null,null,null,null,null,null,null,null,1]
["26 - The building is provided with constant volume fan systems or/and variable-air-volume fan systems.",null,null,null,null,null,null,null,null,null,0]
[]
[]
["Explanation:"]
[]
[]
["5.2.3.2. Constant-Volume Fan Systems"]
["27 - For fans producing constant air flowrate whenever the system is operating, the maximum power demand required by the motors for the combined supply and return fan system at design conditions, do not exceed the requirements of Sentence 5.2.3.2.(1)..",null,null,null,null,null,null,null,null,null,0]
[]
[]
["Explanation:"]
[]
[]
["5.2.3.3. Variable-Air-Volume Fans Systems"]
["28 - For fans systems through which airflow varies automatically as a function of load, the power demand required by the motors for the combined supply and return fan system, does not exceed the limit of Sentence 5.2.3.3.(1)..",null,null,null,null,null,null,null,null,null,0]
[]
[]
["Explanation:"]
[]
[]
[]
[]
[]
["29 - In variable-air-volume systems, any individual supply, relief or return fan with a power demand greater that 7.5 kW and less than 25 KW, has controls for variation of flow meeting Sentence 5.2.3.3.(2)..",null,null,null,null,null,null,null,null,null,0]
[]
[]
["Explanation:"]
[]
[]
[]
[]
[]
["30 - In variable-air-volume systems, any individual supply, relief or return fan with a power demand equal to or greater than 25 KW, has controls to prevent the fan motor from demanding more than Sentence 5.2.3.3.(3)..",null,null,null,null,null,null,null,null,null,0]
[]
[]
["Explanation:"]
[]
[]
[]
[]
[]
[]
["5.2.4. Air Intake and Outlet Dampers"]
["5.2.4.1. Required Dampers"]
["31 - All applicable ducts or openings are equipped with motorized dampers as indicated in Sentence 5.2.4.1.(1)..",null,null,null,null,null,null,null,null,null,0]
[]
[]
["Explanation:"]
[]
[]
["Exemption 1: Where dampers are not permitted by other regulations, air intakes and outlets need not comply with Sentence 5.2.4.1.(1)., as provided in Sentence 5.2.4.1.(2).."]
[]
[]
["Exemption 2: Air intakes and outlets serving HVAC systems required to operate continuously need not comply with Sentence 5.2.4.1(1)., as provided in Sentence 5.2.4.1.(3).."]
[]
[]
["Permission 1: If the duct or opening is less than 0.08 m2 in cross sectional area, the air inlet and outlet dampers are permitted to comply with Sentence 5.2.4.1.(4)..  "]
[]
[]
[]
[]
[]
["5.2.4.2. Type and Location of Dampers"]
["32 - Dampers, as required by Article 5.4.2.1, are located relative to the building envelope and designed to close as indicated in Sentence 5.2.4.2.(1).. ",null,null,null,null,null,null,null,null,null,0]
[]
[]
["Explanation:"]
[]
[]
["Permission 1: Dampers required in Article 5.2.4.1. are permitted to be located inboard of the building envelope, provided the conditions of Sentence 5.2.4.2.(3), apply."]
[]
[]
["Permission 2: Dampers in air intakes and outlets serving air-heating or -cooling equipment located outside of the building envelope are permitted to be located within the equipment, according to Sentence 5.2.4.2.(4).."]
[]
[]
["33 - Air leakage through required motorized dampers in their closed position, does not exceed the requirements of Sentence 5.2.4.2.(2)..",null,null,null,null,null,null,null,null,null,0]
[]
[]
["Explanation:"]
[]
[]
[]
[]
[]
[]
["5.2.5. Piping for Heating Ventilating and Air-Conditioning Systems"]
["5.2.5.1. Design and Installation of Piping"]
["34- HVAC piping is designed and installed in accordance with the NBC, according to the requirements of 5.2.5.1.(1)..",null,null,null,null,null,null,null,null,null,0]
[]
[]
["5.2.5.2. Provisions for Balancing"]
["35 - All hydronic systems are designed so that they can be balanced, according to the requirements of 5.2.5.1.(2)..",null,null,null,null,null,null,null,null,null,0]
[]
[]
["5.2.5.3. Piping Insulation "]
["36 - Piping forming part of HVAC systems, as indicated in Article 5.2.5.3., is insulated according to the requirements of Table 5.2.5.3.. ",null,null,null,null,null,null,null,null,null,0]
[]
[]
["Exemption 1: Piping within a conditioned space in a dwelling unit and serving only that dwelling unit need not comply with Sentence 5.2.5.3.(1)., if they meet the requirements of Sentence 5.2.5.3.(2).."]
[]
[]
["Exemption 2: HVAC piping that conveys fluids with design operating temperatures greater than 13°C and less than 41°C need not comply with Table 5.2.5.3."]
[]
[]
["Permission 1: Where piping insulation has a thermal conductivity that is lower than the ranges given in Table 5.2.5.3., the insulation thickness given in the Table may be increased according to the requirements of Sentence 5.2.5.3.(6).. ",null,null,null,null,null,null,null,null,null,0]
[]
[]
["Explanation:"]
[]
[]
["37 - Piping located outside the building, with an operating temperature above 177◦C is insulated in accordance with the requirements of Table 5.2.5.3..",null,null,null,null,null,null,null,null,null,0]
[]
[]
["38 - Where piping insulation has a thermal conductivity that is greater than the ranges given in Table 5.2.5.3., the insulation thickness given in the Table is modified according to the requirements of Sentence 5.2.5.3.(5)..",null,null,null,null,null,null,null,null,null,0]
[]
[]
["Explanation:"]
[]
[]
["39 - The thermal conductivity of the piping insulation is determined according to Sentence 5.2.5.3.(7)..",null,null,null,null,null,null,null,null,null,0]
[]
[]
["40 - Required insulation is installed according to good practice, according to Sentence 5.2.5.3.(8)..",null,null,null,null,null,null,null,null,null,0]
[]
[]
["5.2.5.4. Protection of Piping Insulation"]
["41 - Insulation on piping conveying chilled fluid is provided with a vapour barrier protection to prevent condensation, according to Sentence 5.2.5.4.(1)..",null,null,null,null,null,null,null,null,null,0]
[]
[]
["Explanation:"]
[]
[]
["42 - Piping insulation is protected from mechanical damage and weathering in accordance with Sentence 5.2.5.4.(2)..",null,null,null,null,null,null,null,null,null,0]
[]
[]
["Explanation:"]
[]
[]
[]
["5.2.6. Pumping Systems Design"]
["5.2.6.1. Application"]
["43 - All HVAC pumping systems with a total pump system motor nameplate power of 7.5 kW or greater, according to Article 5.2.6.1., meet the requirements of Subsection 5.2.6..",null,null,null,null,null,null,null,null,null,0]
[]
[]
["Explanation:"]
[]
[]
["5.2.6.2. Variable-Flow Pumping Systems"]
["44 - Applicable HVAC pumping systems that serve control valves are configured and designed to vary flow according to Sentence 5.2.6.2.(1)..",null,null,null,null,null,null,null,null,null,0]
[]
[]
["Explanation:"]
[]
[]
["Exemption 1: Sentence 5.2.6.1.(1). does not apply to the systems listed in Sentence 5.2.6.2.(1). within specific minimum flow, controls or resets."]
[]
[]
[]
["5.2.7. Equipment Installed Outdoors"]
["45 - Is the building equipped with HVAC equipment installed outdoors?",null,null,null,null,null,null,null,null,null,0]
[]
[]
["5.2.1.7. Manufacturer's Designation"]
["46 - If Yes: HVAC equipment planned for installation outdoors or in an unconditioned space has been designated by the manufacturer for such installation.",null,null,null,null,null,null,null,null,null,0]
[]
[]
[]
["5.2.8. Temperature Controls"]
["5.2.8.1. Temperature Controls"]
["47 - Each HVAC system intended to provide comfort heating or cooling is provided with space temperature control devices, accurate to within 1°C, as indicated in sentence 5.2.8.1.(1)..",null,null,null,null,null,null,null,null,null,0]
[]
[]
["48 - Does the building contain dwellling units?",null,null,null,null,null,null,null,null,null,0]
[]
[]
["49 - If Yes: Each dwelling unit is controlled by at least one thermostatic control device.",null,null,null,null,null,null,null,null,null,0]
[]
[]
["5.2.8.2. Temperature Control within Dwelling Units"]
["50 - Dwelling units are provided with temperature control devices to control the heating to the space as indicated in Sentence 5.2.8.2.(1)..",null,null,null,null,null,null,null,null,null,0]
[]
[]
["51 - Are the dwelling units provided with mechanical cooling?",null,null,null,null,null,null,null,null,null,0]
[]
[null,null,null,null,null,null,null,null,null,null,0]
["52 - If Yes: Dwelling units are provided with temperature controls devices to reduce the cooling to the space as indicated in Sentence 5.2.8.2.(2)..",null,null,null,null,null,null,null,null,null,0]
[]
[]
["5.2.8.3. Installation of Thermostats"]
["53 - Thermostats are installed as required in Sentence 5.2.8.3.(1). to control the HVAC system.",null,null,null,null,null,null,null,null,null,0]
[]
[]
["Explanation:"]
[]
[]
["Exemption 1: Barrier-free installation meeting the requirements of 5.2.8.3.(1).."]
[]
[]
["Exemption 2: Stratified ventilation systems meeting the requirements of 5.2.8.3.(1).."]
[]
[]
["Exemption 3: Manufacturer's instuctions differ from 5.2.8.3.(1).."]
[]
[]
["5.2.8.4. Heat Pump Controls"]
["54 - Is the building equipped with heat pump(s) with supplemental heaters?",null,null,null,null,null,null,null,null,null,0]
[]
[]
["55 - Heat pumps equipped with supplementary heaters are provided with controls to prevent supplemental heater operation when the heating load can be met by the heat pump alone, according to Sentence 5.2.8.4.(1).",null,null,null,null,null,null,null,null,null,0]
[null,null,null,null,null,null,null,null,null,null,0]
[]
["Explanation:"]
[]
[]
["5.2.8.5. Space Temperature Control"]
["56 - The supply of heating and cooling energy to each zone is controlled by thermostatic controls as indicated in Sentence 5.2.8.5.(1).. ",null,null,null,null,null,null,null,null,null,0]
[]
[]
["Explanation:"]
[]
[]
["57 - Independent perimeter heating and cooling system(s) designed to offset building envelope heat losses, heat gains or both have space temperature control devices as indicated in Sentence 5.2.8.5.(2)..",null,null,null,null,null,null,null,null,null,0]
[]
[]
["Explanation:"]
[]
[]
["58 - Spaces provided with separate thermostatic controls for heating and cooling prevent simultaneous operation, according to 5.2.8.5.(3)..",null,null,null,null,null,null,null,null,null,0]
[]
[]
["Explanation:"]
[]
[]
["59 - Electric resistance heater unit thermostats meet the requirements of Sentence 5.2.8.5.(4)..",null,null,null,null,null,null,null,null,null,0]
[]
[]
["Explanation:"]
[]
[]
["60 - Applicable vestibules have temperature control devices that limit the maximum temperature to 15°C according to Sentence 5.2.8.5.(5).. ",null,null,null,null,null,null,null,null,null,0]
[]
[]
["Explanation:"]
[]
[]
["5.2.8.6. Ice- and Snow Melting Heater Controls"]
["61 - Ice- and snow-melting heaters are provided with shut down controls as indicated in Sentence 5.2.8.6.(1)..",null,null,null,null,null,null,null,null,null,0]
[]
[]
["Explanation:"]
[]
[]
["5.2.8.7. Control of Temperature of Air Leaving the Supply Air Handler"]
["62 - Is the building equipped with supply air-handler(s)?",null,null,null,null,null,null,null,null,null,0]
[]
[]
["63 - If Yes: All applicable supply air-handlers are designed and equipped with controls to avoid excessive heating or cooling as required in Sentence 5.2.8.7.(1)..",null,null,null,null,null,null,null,null,null,0]
[]
[]
["Permission 1: Reheating supply air for humidity control is permitted according to 5.2.8.7.(2). where specified humidity levels are required."]
[]
[]
["Permission 2: Reheating supply air is permitted according to 5.2.8.7.(3). where such reheating will not cause an increase in energy consumption."]
[]
[]
["5.2.8.8. Control of Space Temperature by Reheating or Recooling"]
["64 - Does the building have HVAC systems that cool previously heated air or systems that heat previously cooled air?"]
[]
[]
["65 - Applicable reheat systems are equipped with controls that automatically adjust the temperature of the cool air supply to the highest temperature that will satisfy the temperature-control zone requiring the coolest air, according to Sentence 5.2.8.8.(1)..",null,null,null,null,null,null,null,null,null,0]
[]
[]
["Explanation:"]
[]
[]
["Exemption 1: HVAC systems that are designed to reduce the air supplied to each temperature-control zone to no more than 2 L/s per m2 of floor surface area of the temperature-control zone before reheating, recooling or mixing of supply air takes place need not comply with Sentence (1)."]
[]
[]
["66 - Applicable recool systems are equipped with controls that automatically adjust the temperature of the warm air supply to the lowest temperature, according to Sentence 5.2.8.8.(2)..",null,null,null,null,null,null,null,null,null,0]
[]
[]
["Explanation:"]
[]
[]
["Exemption 1: HVAC systems that are designed to reduce the air supplied to each temperature-control zone to no more than 2 L/s per m2 of floor surface area of the temperature-control zone before reheating, recooling or mixing of supply air takes place need not comply with Sentence (2)."]
[]
[]
["67 - HVAC systems that control the temperature of a space by mixing reheat supply air and cooled supply air are equipped with controls according to Sentence 5.2.8.8.(3)..",null,null,null,null,null,null,null,null,null,0]
[]
[]
["Explanation:"]
[]
[]
["Exemption 1: HVAC systems that are designed to reduce the air supplied to each temperature-control zone to no more than 2 L/s per m2 of floor surface area of the temperature-control zone before reheating, recooling or mixing of supply air takes place need not comply with Sentence 5.2.8.8.(3)."]
[]
[]
[]
["5.2.9. Humidification"]
["5.2.9.1. Humidification Controls"]
["68 - HVAC systems equipped with a means of adding or removing moisture to maintain specific humidity levels in a space have automatic control devices meeting the requirements of Sentence 5.2.9.1.(1)..",null,null,null,null,null,null,null,null,null,0]
[]
[]
["Explanation:"]
[]
[]
[]
["5.2.10. Heat Recovery"]
["5.2.10.1. Heat-Recovery Systems",null,null,null,null,null,null,null,null,null,0]
["69 - Applicable exhaust systems with sensible heat content, greater than 150 kW, are provided with heat-recovery apparatus with a minimum 50 % efficiency, as described in Article 5.2.10.1.. ",null,null,null,null,null,null,null,null,null,0]
[]
[]
["Explanation:"]
[]
[]
["Exemption 1: Specialized exhaust systems, listed in Sentence 5.2.10.1.(3)., need not comply with Sentence 5.2.10.1.(1).."]
[]
[]
["70 - Heat recovered in accordance with Sentence 5.2.10.1.(1) is used in the building's systems, according to Sentence 5.2.10.1.(2)..",null,null,null,null,null,null,null,null,null,0]
[]
[]
["Explanation:"]
[]
[]
["71 - The sensible heat of the recovery apparatus is determined according to Sentence 5.2.10.1.(4)..",null,null,null,null,null,null,null,null,null,0]
[]
[]
["Explanation:"]
[]
[]
["72 - At airflow rates not less than the system design capacity, the sensible-heat-recovery efficiency of a heat-recovery apparatus referred to in Sentence (1) shall be determined according to Sentence 5.2.10.1.(5)..",null,null,null,null,null,null,null,null,null,0]
[]
[]
["Explanation:"]
[]
[]
["5.2.10.2. Heat Recovery from Dehumidification in Swimming Pools"]
["73 - Does the building contain a pool with a surface area greater than 10 m2.",null,null,null,null,null,null,null,null,null,0]
[null,null,null,null,null,null,null,null,null,null,0]
[]
["74 - If Yes: Applicable pools are provided with systems capable of recovering at least 40% of the sensible heat of exhaust air according to Sentence 5.2.10.2.(1)..",null,null,null,null,null,null,null,null,null,0]
[]
[]
["Explanation:"]
[]
[]
["Permission 1: Indoor swimming pools are provided with stationary or desiccant dehumidification that provides at least 80% dehumidification, as required in 5.2.10.2.(2).."]
[]
[]
["5.2.10.3. Heat Recovery from Ice-making Machines in Ice Arena and Curling Rinks"]
["75 - Does the buildings contain ice-arenas or curling rinks.",null,null,null,null,null,null,null,null,null,0]
[]
[]
["76 - Does the building's ice-area or curling rink have heating requirements.",null,null,null,null,null,null,null,null,null,0]
[]
[]
["77 - If Yes: There is a means of recovering heat rejected by the refrigeration system for space heating or service water heating as indicated in Sentence 5.2.10.3.(1)..",null,null,null,null,null,null,null,null,null,0]
[]
[]
["Explanation:"]
[]
[]
["5.2.10.4. Heat Recovery in Dwelling Units"]
["78 - For buildings with dwelling units, located in climate zones 7a, 7b, and 8, the principal exhaust component of the ventilation system to the dwelling units is equipped with heat-recovery capability, as indicated in Sentence 5.2.10.4(1)..",null,null,null,null,null,null,null,null,null,0]
[]
[]
["Explanation:"]
[]
[]
["79 - Heat-recovery ventilators used to meet the requirements of Sentence 5.2.10.4.(1)., have a sensible-heat recovery efficiency according to Sentence 5.2.10.4.(2)..\n",null,null,null,null,null,null,null,null,null,0]
[]
[]
["Other:"]
[]
[null,null,null,null,null,null,null,null,null,null,"y"]
["80 - The tests described in Sentence 5.2.10.4.(2) are performed at the rated airflow as described in Sentence 5.2.10.4.(3)..",null,null,null,null,null,null,null,null,null,0]
[]
[]
["Explanation:"]
[]
[]
["81 - Where a heat-recovery system other than a heat-recovery ventilator is used to meet the requirements of Sentence 5.2.10.4.(1)., that system has a heat-recovery performance equivalent to that required in Sentence 5.2.10.(2)., for heat-recovery ventilators.",null,null,null,null,null,null,null,null,null,0]
[]
[]
["Explanation:"]
[]
[]
["82 - Where heat-recovery systems are required in multi-unit residential buildings, the minimum sensible-heat recovery efficiency is 50%. ",null,null,null,null,null,null,null,null,null,0]
[null,null,null,null,null,null,null,null,null,null,0]
[]
["Explanation:",null,null,null,null,null,null,null,null,null,0]
[]
[]
[null,null,null,null,null,null,null,null,null,null,0]
["5.2.11. Shut-off and Setback Controls"]
["5.2.11.1. Off-hours Controls"]
["83 - Systems serving dwelling units or other areas that are not intended to operate continuously and whose zone-heating or -cooling capacity requirements is 5 kW or more, are equipped with controls, according to Sentence 5.2.11.1.(1)..",null,null,null,null,null,null,null,null,null,1]
[]
[]
["Explanation:"]
[]
[]
["Exemption 1: Zones with a total heating or cooling capacity requirement of less than 5 kW are controlled by readily accessible manual controls, according to Sentence 5.2.11.1.(3)..",null,null,null,null,null,null,null,null,null,0]
[]
[]
["84- Controls required in Sentence 5.2.11.1.(1)., are designed and configured according to Sentence 5.2.11.1(2)..",null,null,null,null,null,null,null,null,null,0]
[]
[]
["85 - Controls required by Sentence 5.2.11.1.(1). are designed so energy is not spent to reach off-hours setpoints as requirements by Sentence 5.2.11.1.(4)..",null,null,null,null,null,null,null,null,null,0]
[]
[]
["Explanation:"]
[]
[null,null,null,null,null,null,null,null,null,null,0]
["5.2.11.2. Airflow Control Areas"]
["86 - All applicable air distribution systems, as per Sentence 5.2.11.2.(1)., serving multiple temperature-control zones with areas, and greater than 2500 m2, are required to be divided into airflow control areas and are designed and configured to allow supply and exhaust air to be reduce or stopped independently, according to the requirements of Article 5.2.11.2..",null,null,null,null,null,null,null,null,null,0]
[null,null,null,null,null,null,null,null,null,null,0]
[null,null,null,null,null,null,null,null,null,null,0]
["Explanation:",null,null,null,null,null,null,null,null,null,0]
[]
[]
["Exemption 1: The implementation of Sentence 5.2.11.2.(1). is impractical and the air distribution systems are configured as required in Sentence 5.2.11.2.(8)..",null,null,null,null,null,null,null,null,null,0]
[]
[]
["Permission 1: Temperature-control zones in which outdoor air and exhaust requirements prevent the reduction or stopping of the air supply, need not be incorporated into airflow control areas, according to Sentence 5.2.11.2.(2).."]
[]
[]
["87 - Each airflow control area required in Sentence 5.2.11.2.(1) and (2) include only temperature control zones intended to be operated simultaneously, according to Sentence 5.2.11.2.(3)..",null,null,null,null,null,null,null,null,null,0]
[]
[]
["88 - Each airflow control area required in Sentences 5.2.11.2.(1). and (2) do not span more than one storey, according to Sentence 5.2.11.2.(4)..",null,null,null,null,null,null,null,null,null,0]
[]
[]
["89 - Each airflow control area required in Sentence 5.2.11.2.(1). is equipped with controls meeting the requirements of Article 5.2.11.1..",null,null,null,null,null,null,null,null,null,0]
[]
[]
["90 - The air distribution system is designed such that a reduction in air delivery of up to 50% of design flow, results in a reduction in fan power, according to Sentence 5.2.11.2.(6)..",null,null,null,null,null,null,null,null,null,0]
[]
[]
["91 - Controls and devices are provided to allow stable operation of systems for any length of time while they are serving a single airflow control area, according to Sentence 5.2.11.2.(7)..",null,null,null,null,null,null,null,null,null,0]
[]
[]
["Explanation:"]
[]
[]
["5.2.11.3. Seasonal Shutdown",null,null,null,null,null,null,null,null,null,0]
["92 - Is the building provided with HVAC pumping systems that are used on a seasonal basis?",null,null,null,null,null,null,null,null,null,1]
[]
[]
["93 - If Yes: The HVAC pumping systems are provided with the controls required in Article 5.2.11.3..",null,null,null,null,null,null,null,null,null,0]
[]
[]
["5.2.11.4. Multiple Boilers"]
["94 - Does the building have multiple boilers?",null,null,null,null,null,null,null,null,null,0]
[]
[]
["95 - HVAC systems with multiple boilers, incorporate a means for preventing heat loss through the boilers when they are not operating as indicated in Sentence 5.2.11.4.(1).. ",null,null,null,null,null,null,null,null,null,0]
[]
[]
["96 - For heating loads > 176 KW and ≤ 352 kW the boiler plant is configured as required by Sentence 5.2.11.4.(2).. ",null,null,null,null,null,null,null,null,null,0]
[]
[]
["Explanation:"]
[]
[]
["97 - For heating loads > 352 KW the boiler plant is fully modulating as required by Sentence 5.2.11.4.(3).. ",null,null,null,null,null,null,null,null,null,0]
[]
[]
["Explanation:"]
[]
[]
["5.2.11.5. Loop Temperature Reset for Chilled- and Hot-Water Systems",null,null,null,null,null,null,null,null,null,0]
["98 - Chilled- and/or hot-water systems with design capacity greater than 88 kW are provided with a temperature reset according to Article 5.2.11.5..",null,null,null,null,null,null,null,null,null,0]
[]
[]
["Explanation:"]
[]
[]
["Exemption 1: Chilled- and hot-water systems described in Sentence 5.2.11.5.(1). need not be equipped with loop temperature reset controls where such controls would cause the improper operation of heating, cooling, humidifying, or dehumidifying equipment or systems, according to Sentence 5.2.11.5.(2).."]
[]
[]
["Exemption 2: Chilled- and hot-water systems described in Sentence 5.2.11.5.(1) that are designed with variable-flow pumping complying with Sentence 5.2.6.2.(1) need not be equipped with loop temperature reset controls, according to Sentence 5.2.11.5.(3).."]
[]
[]
[]
["5.2.12. Equipment Efficiency"]
["5.2.12.1. Unitary and Packaged HVAC Equipment "]
["99 - Unitary and packaged HVAC equipment and components comply with the performance requirements listed in Table 5.2.12.1..",null,null,null,null,null,null,null,null,null,0]
[]
[]
["Explanation:"]
[]
[]
["100 - The table below is complete with HVAC equipment and component specifications for the building.",null,null,null,null,null,null,null,null,null,0]
[]
[]
["Explanation:"]
[]
[]
[]
[]
["Component or Equipment","Location or Identifier","Cooling or Heating Capacity kW",null,"Standard",null,null,"Rating Condition","Rated Performance "]
[]
[]
[]
[]
[]
[]
[]
[]
[]
[]
[]
[]
[]
[]
[]
[]
[]
[]
[]
[]
[]
["5.2.12.2. Field-Assembled Equipment and Components"]
["101 - If components from more than one manufacturer are used as parts of an HVAC systems, the system is designed in accordance with good engineering practice according to Article 5.2.12.2..",null,null,null,null,null,null,null,null,null,0]
[]
[]
["Explanation:"]
[]
[]
["5.2.12.3. Service Water Heating Equipment Used for Space Heating "]
["102 - Is the building provided with service water heating equipment used for space heating?",null,null,null,null,null,null,null,null,null,0]
[]
[]
["103 - Service water heating equipment solely used to provide space heating or used to provided a combination of space and service water heating complies with the applicable standard listed in Table 6.2.2.1. or, where such equipment is not covered in this Table, with the Energy Efficiency Act and its Regulations..",null,null,null,null,null,null,null,null,null,0]
[null,null,null,null,null,null,null,null,null,null,0]

{"sheet":"HVAC - TOP","index":8,"n_rows":152,"n_cols":15,"rows_kept":152,"cut":false,"hidden":true,"merged":[[97,3,97,5],[98,3,98,5],[99,3,99,5],[100,3,100,5],[101,3,101,5],[102,3,102,5],[151,9,153,9],[129,6,129,8],[132,9,134,9],[136,9,138,9],[139,9,141,9],[143,9,145,9],[147,9,149,9],[147,0,149,8],[146,0,146,8],[150,0,150,8],[151,0,153,8],[143,0,145,8],[131,0,131,8],[132,0,134,8],[135,0,135,8],[136,0,138,8],[139,0,141,8],[142,0,142,8],[54,0,56,8],[42,9,44,9],[45,9,47,9],[48,9,50,9],[4,0,5,8],[14,0,15,8],[40,0,40,8],[41,0,41,8],[42,0,44,8],[45,0,47,8],[48,0,50,8],[51,0,53,8],[6,0,13,8],[16,0,17,2],[16,3,17,8],[16,9,17,9],[51,9,56,9],[19,0,21,8],[22,0,24,8],[25,0,27,8],[28,0,30,8],[31,0,33,8],[34,0,36,8],[37,0,38,8],[96,3,96,5],[80,9,82,9],[84,9,86,9],[57,0,59,8],[63,0,63,8],[64,0,66,8],[67,0,69,8],[70,0,70,8],[71,0,73,8],[74,0,74,8],[75,0,75,8],[76,0,78,8],[79,0,79,8],[80,0,82,8],[83,0,83,8],[84,0,86,8],[57,9,62,9],[116,1,116,2],[105,1,105,2],[106,1,106,2],[107,1,107,2],[108,1,108,2],[109,1,109,2],[110,1,110,2],[111,1,111,2],[112,1,112,2],[113,1,113,2],[128,3,128,5],[109,3,109,5],[110,3,110,5],[111,3,111,5],[112,3,112,5],[113,3,113,5],[106,3,106,5],[107,3,107,5],[108,3,108,5],[120,3,120,5],[121,3,121,5],[122,3,122,5],[123,3,123,5],[124,3,124,5],[125,3,125,5],[126,3,126,5],[127,3,127,5],[114,3,114,5],[115,3,115,5],[116,3,116,5],[117,3,117,5],[0,2,0,8],[1,2,1,8],[0,0,0,1],[1,0,1,1],[129,0,129,1],[129,2,129,5],[96,11,96,12],[94,3,94,6],[117,1,117,2],[118,1,118,2],[119,1,119,2],[120,1,120,2],[121,1,121,2],[122,1,122,2],[123,1,123,2],[124,1,124,2],[125,1,125,2],[126,1,126,2],[127,1,127,2],[128,1,128,2],[118,3,118,5],[119,3,119,5],[114,1,114,2],[115,1,115,2],[19,9,30,9],[31,9,36,9],[18,0,18,8],[105,3,105,5],[103,3,103,5],[104,3,104,5],[96,1,96,2],[97,1,97,2],[98,1,98,2],[99,1,99,2],[100,1,100,2],[101,1,101,2],[102,1,102,2],[103,1,103,2],[104,1,104,2],[87,9,89,9],[90,0,91,8],[92,0,93,8],[60,0,62,8],[64,9,66,9],[67,9,69,9],[71,9,73,9],[76,9,78,9],[87,0,89,8]]}
["Project Name",null,{"$f":"'HVAC - Prescriptive'!C1:I1","v":"Enter Project Name on 'How to Use this Document' tab"}]
["Contact Person",null,{"$f":"'Compliance Documents Checklist'!C2:F2","v":"Enter contact person name on 'How to Use this Document' tab"}]
[]
[]
["Section 5.1. General"]
[]
["Please enter here any building specific explanation with reference to the item number."]
[]
[]
[]
[]
[]
[]
[]
[]
[]
["Incomplete Items",null,null,{"$f":"COUNTIF(K43:K154,0)","v":18}]
[]
[]
["1 -  This Section is complete for all systems heating, ventilating and air conditioning (HVAC) systems covered by the NECB, in the building.",null,null,null,null,null,null,null,null,null,0]
[]
[]
["Exemption 1: HVAC systems used exclusively for the control of smoke, according to 5.1.1.2.(1)..",null,null,null,null,null,null,null,null,null,0]
[]
[]
["Exemption 2: Where it can be shown that the nature of the occupancy, or that the type of HVAC system makes it impractical to apply the requirement of this Part, according to Sentence 5.1.1.2.(2).."]
[]
[]
["Exemption 3: Existing HVAC systems that are extended to serve additions, according to Sentence 5.1.1.2.(3).."]
[]
[]
["2 - This Section is completed for all back-up HVAC systems covered by the NECB, in the building.",null,null,null,null,null,null,null,null,null,0]
[]
[]
["Explanation:"]
[]
[]
["Section 5.3. Trade-off Path"]
[]
[]
["5.3.1. General"]
["5.3.1.1. Application"]
["3 - The building and its service water heating system(s) allows the use of the trade-off path by meeting the requirements of Sentence 5.3.1.1.(1)..",null,null,null,null,null,null,null,null,null,0]
[]
[]
["4 - The HVAC system used, is of a type listed in Table 5.3.1.1..",null,null,null,null,null,null,null,null,null,0]
[]
[]
["5 - The energy type is listed in Subclause 5.3.1.1.(1).(c).(ii).",null,null,null,null,null,null,null,null,null,0]
[]
[null,null,null,null,null,null,null,null,null,null,1]
["6 - The cooling energy is electricity, as required by Subclause 5.3.1.1.(1).(c).(iii).",null,null,null,null,null,null,null,null,null,0]
[]
[]
["Explanation:"]
[]
[]
["7 - The heat pump energy is electricity, as required by Subclause 5.3.1.1.(1).(c).(iii)..",null,null,null,null,null,null,null,null,null,0]
[]
[]
["Explanation:"]
[]
[]
["5.3.1.2. Application Limitations"]
["8 - Is the building provided with back-up HVAC systems?",null,null,null,null,null,null,null,null,null,0]
[]
[]
["9 - The back-up system complies with the prescriptive requirements, as required by Article 5.3.1.2..",null,null,null,null,null,null,null,null,null,0]
[]
[]
["5.3.1.3. Compliance",null,null,null,null,null,null,null,null,null,1]
["10 - The HVAC trade-off index, HVACTOI, as calculated in accordance with Subsection 5.3.2., for all HVAC systems, is greater or equal to 0. The HVACTOI is",null,null,null,null,null,null,null,null,null,0]
[]
[]
["5.3.2. Compliance Calculation"]
["5.3.2.1. HVAC Trade-off Index"]
["11 - The HVAC trade-off index, HVACTOI for a specific HVAC system is calculated using the equation in Sentence 5.3.2.1.(1)..",null,null,null,null,null,null,null,null,null,0]
[]
[]
["5.3.2.2. Determination of Components to Be Included, γi"]
["12 - The value of the component factor, γi, used in the equation in Sentence 5.3.2.1.(1) is taken from Table 5.3.2.2., as required by Sentence 5.3.2.2.(1)..",null,null,null,null,null,null,null,null,null,0]
[]
[]
["5.3.2.3. Determination of Trade-off Values of Components, ToVi"]
["13 - The trade-off value component i, ToVi, to be used in the equation in Sentence 5.3.2.1.(1). is determined in accordance with the requirements of Table 5.3.2.3..",null,null,null,null,null,null,null,null,null,0]
[]
[]
["14 - Is an HVAC summary report attached for each system?",null,null,null,null,null,null,null,null,null,0]
[]
[]
["HVAC Equipment Summary of the Proposed Buiding"]
[]
[]
[]
["System Type"]
[]
["Trade-off Value","Description",null,"Value",null,null,"Unit","Source"]
[{"$f":"CONCATENATE(N98,O98)","v":"ToV1"},"Supply fan mechanical efficiency",null,null,null,null,"%","Specifications",null,null,null,null,null,"ToV",1]
[{"$f":"CONCATENATE(N99,O99)","v":"ToV2"},"Supply motor efficiency",null,null,null,null,"%","Specifications",null,null,null,null,null,"ToV",2]
["ToV3","Return fan mechanical efficiency",null,null,null,null,"%","Specifications",null,null,null,null,null,"ToV",3]
["ToV4","Return fan motor efficiency ",null,null,null,null,"%","Specifications",null,null,null,null,null,"ToV",4]
["ToV5","Supply temperature control",null,null,null,null,"ratio","Table 5.3.2.7.",null,null,null,null,null,"ToV",5]
["ToV6","Airflow control efficiency",null,null,null,null,"ratio","Table 5.3.2.7.",null,null,null,null,null,"ToV",6]
["ToV7","Supply fan total static pressure",null,null,null,null,"in. w.g.","Specifications",null,null,null,null,null,"ToV",7]
["ToV8","Supply duct insulation",null,null,null,null,"R-value","Specifications",null,null,null,null,null,"ToV",8]
["ToV9","Return fan total static pressure",null,null,null,null,"in. w.g.","Specifications",null,null,null,null,null,"ToV",9]
["ToV10","Heating coil design temp drop",null,null,null,null,"°F","Specifications",null,null,null,null,null,"ToV",10]
["ToV11","Baseboard heater design temperature drop",null,null,null,null,"°F","Specifications",null,null,null,null,null,"ToV",11]
["ToV12","Boiler/furnace/heat pump heating efficiency",null,null,null,null,"%","Specifications",null,null,null,null,null,"ToV",12]
["ToV13","Chillers/direct expansion system/heat pump cooling efficiency",null,null,null,null,"COP","Specifications",null,null,null,null,null,"ToV",13]
["ToV14","Rejection fan input power ratio",null,null,null,null,"W/Btu/h","Specifications",null,null,null,null,null,"ToV",14]
["ToV15","Cooling by direct use of outdoor air (air economizer)",null,null,null,null,"ratio","Table 5.3.2.7.",null,null,null,null,null,"ToV",15]
["ToV16","Outdoor airflow control",null,null,null,null,"ratio","Table 5.3.2.7.",null,null,null,null,null,"ToV",16]
["ToV17","Exhaust air heat-recovery efficiency",null,null,null,null,"%","Specifications",null,null,null,null,null,"ToV",17]
["ToV18","Cooling by indirect use of outdoor air (water economizer)",null,null,null,null,"%","Specifications",null,null,null,null,null,"ToV",18]
["ToV19","Piping insulation – hot water",null,null,null,null,"R-value","Specifications",null,null,null,null,null,"ToV",19]
["ToV20","Piping insulation – chilled water",null,null,null,null,"R-value","Specifications",null,null,null,null,null,"ToV",20]
["ToV21","Piping pressure losses – hot water",null,null,null,null,"ft. w.g.","Specifications",null,null,null,null,null,"ToV",21]
["ToV22","Piping pressure losses – chilled water",null,null,null,null,"ft. w.g.","Specifications",null,null,null,null,null,"ToV",22]
["ToV23","Pump mechanical efficiency – hot water",null,null,null,null,"%","Specifications",null,null,null,null,null,"ToV",23]
["ToV24","Pump mechanical efficiency – chilled water",null,null,null,null,"%","Specifications",null,null,null,null,null,"ToV",24]
["ToV25","Pump motor efficiency – hot water",null,null,null,null,"%","Specifications",null,null,null,null,null,"ToV",25]
["ToV26","Pump motor efficiency – chilled water",null,null,null,null,"%","Specifications",null,null,null,null,null,"ToV",26]
["ToV27","Hot water pump control",null,null,null,null,"ratio","Table 5.3.2.7.",null,null,null,null,null,"ToV",27]
["ToV28","Chilled water pump control",null,null,null,null,"ratio","Table 5.3.2.7.",null,null,null,null,null,"ToV",28]
["ToV29","Hot water loop temperature control",null,null,null,null,"ratio","Table 5.3.2.7.",null,null,null,null,null,"ToV",29]
["ToV30","Chilled water loop temperature control",null,null,null,null,"ratio","Table 5.3.2.7.",null,null,null,null,null,"ToV",30]
["ToV31","Hot water flow control",null,null,null,null,"ratio","Table 5.3.2.7.",null,null,null,null,null,"ToV",31]
["ToV32","Chilled water flow control",null,null,null,null,"ratio","Table 5.3.2.7.",null,null,null,null,null,"ToV",32]
["HVAC toi"]
[]
["5.3.2.4. Determination of Base Value of Components, BaVi"]
["15 - The base value of component i for the reference building, BaVi, to be used in the equation in Sentence 5.3.2.1.(1), is taken from Table 5.3.2.4. for the applicable HVAC system for the proposed building, as required by Sentence 5.3.2.4.(1)..",null,null,null,null,null,null,null,null,null,0]
[]
[]
["5.3.2.5. Determination of Weighting Factor Linking the Component Efficiency Variation to the System Efficiency Variation, αi and βi"]
["16 - The first order weighting factor linking the component efficiency variations of component i to the system efficiency variations, αi, is calculated using the equation in Sentence 5.3.2.5.(1)..",null,null,null,null,null,null,null,null,null,0]
[]
[]
["17 - The second order weighting factor linking the component efficiency variations of component i to the system efficiency variations, βi, is calculated using the equation in Sentence 5.3.2.5.(2)..",null,null,null,null,null,null,null,null,null,0]
[]
[]
["5.3.2.6. Determination of Climatic Parameter Relevant to the Component, XDDi"]
["18 - The climatic parameters relevant to component i, XDDi, to be used in the equation in Article 5.3.2.5., are those specified in Tables 5.3.2.8.A. to 5.3.2.8.AA., according to Sentence 5.3.2.6.(1)..",null,null,null,null,null,null,null,null,null,0]
[]
[]
["5.3.2.7. Determination of Trade-off Value of Component, ToVi"]
["19 - As indicated in Table 5.3.2.3., the values for ToV5, ToV6, ToV15, ToV16, and ToV27 to ToV32, to be used in the equation in Sentence 5.3.2.1.(1), are taken from Table 5.3.2.7. for the applicable control type and HVAC system, according to Sentence 5.3.2.7.(1)..",null,null,null,null,null,null,null,null,null,0]
[]
[]
["5.3.2.8. Coefficient Values: α1i, α2i, α3i, β1i, β2i and β3i"]
["20 - The coefficient values of α1i, α2i, α3i, β1i, β2i and β3i to be used for weighting αi and βi in Article 5.3.2.5. are selected from Tables 5.3.2.8.A. to 5.3.2.8.AA., for the given HVAC type and component, according to Sentence 5.3.2.8.(1)..",null,null,null,null,null,null,null,null,null,0]

{"sheet":"SWH - Prescriptive","index":9,"n_rows":208,"n_cols":11,"rows_kept":208,"cut":false,"hidden":true,"merged":[[160,9,165,9],[172,9,177,9],[179,9,184,9],[185,9,190,9],[200,9,205,9],[20,9,21,9],[40,9,45,9],[62,9,70,9],[71,9,76,9],[95,9,100,9],[116,9,121,9],[122,9,124,9],[128,9,133,9],[46,9,48,9],[49,9,50,9],[104,9,115,9],[37,0,37,8],[23,9,25,9],[26,9,28,9],[29,9,30,9],[34,9,36,9],[20,3,21,8],[207,9,209,9],[59,0,60,8],[194,9,196,9],[197,9,199,9],[169,9,171,9],[151,9,153,9],[154,9,156,9],[137,9,139,9],[140,9,142,9],[125,9,127,9],[91,9,93,9],[78,9,80,9],[81,9,83,9],[85,9,87,9],[88,9,90,9],[200,0,202,8],[43,0,45,8],[144,9,149,9],[62,0,64,8],[46,0,48,8],[49,0,50,8],[0,0,0,1],[0,2,0,8],[1,0,1,1],[4,0,5,8],[1,2,1,8],[2,0,3,8],[18,0,19,8],[23,0,25,8],[6,0,17,8],[22,0,22,8],[29,0,30,8],[32,0,32,8],[33,0,33,8],[34,0,36,8],[26,0,28,8],[38,0,38,8],[39,0,39,8],[40,0,42,8],[31,0,31,8],[20,0,21,2],[61,0,61,8],[71,0,73,8],[77,0,77,8],[103,0,103,8],[104,0,106,8],[98,0,100,8],[144,0,146,8],[154,0,156,8],[157,0,157,8],[65,0,67,8],[68,0,70,8],[74,0,76,8],[134,0,134,8],[151,0,153,8],[143,0,143,8],[150,0,150,8],[135,0,135,8],[116,0,118,8],[125,0,127,8],[128,0,130,8],[78,0,80,8],[84,0,84,8],[85,0,87,8],[158,0,158,8],[91,0,93,8],[136,0,136,8],[137,0,139,8],[140,0,142,8],[81,0,83,8],[101,0,101,8],[102,0,102,8],[107,0,109,8],[119,0,121,8],[122,0,124,8],[131,0,133,8],[88,0,90,8],[94,0,94,8],[95,0,97,8],[147,0,149,8],[110,0,112,8],[113,0,115,8],[159,0,159,8],[160,0,162,8],[166,0,166,8],[167,0,167,8],[168,0,168,8],[169,0,171,8],[172,0,174,8],[178,0,178,8],[179,0,181,8],[163,0,165,8],[175,0,177,8],[182,0,184,8],[191,0,191,8],[192,0,192,8],[193,0,193,8],[194,0,196,8],[197,0,199,8],[210,7,210,8],[207,0,209,8],[203,0,205,8],[206,0,206,8],[185,0,187,8],[188,0,190,8]]}
["Project Name",null,{"$f":"'Compliance Documents Checklist'!C1:I1","v":"Enter Project Name on 'How to Use this Document' tab"}]
["Contact Person",null,{"$f":"'Compliance Documents Checklist'!C2:F2","v":"Enter contact person name on 'How to Use this Document' tab"}]
[]
[]
["Section 6.1. General"]
[]
["Please enter here any building specific explanation with reference to the item number."]
[]
[]
[]
[]
[]
[]
[]
[]
[]
[]
[]
[0]
[]
["Incomplete Items",null,null,{"$f":"COUNTIF(K24:K210,0)","v":31}]
[]
[]
["1 - This Section is completed for all service water heating systems in the building.",null,null,null,null,null,null,null,null,null,0]
[]
[]
["2 - This Section is completed for all back-up service water heating systems in the building, as required by Sentence 6.1.1.3.(2)..",null,null,null,null,null,null,null,null,null,0]
[]
[]
["Section 6.2. Prescriptive Path"]
[]
[]
["6.2.1. System Design"]
["6.2.1.1 Regulations"]
["3 - Service water heating systems are designed in accordance with the regulations of  Sentence 6.2.1.1.(1)..",null,null,null,null,null,null,null,null,null,0]
[]
[]
[]
["6.2.2. Water Heating Equipment and Storage Vessels"]
["6.2.2.1. Equipment Efficiency"]
["4 - The building's service water heaters comply with the performance requirements listed in Table 6.2.2.1..",null,null,null,null,null,null,null,null,null,0]
[]
[]
["Explanation:"]
[]
[]
["5 - Complete the table below with service water heating equipment specifications for all equipment in the proposed design.",null,null,null,null,null,null,null,null,null,0]
[]
[]
[]
[]
["Equipment ID or Location","Component Type","Input","Capacity","Vt, L","Input/Vt, W/L","Standard","Rating Condition","Rated Performance "]
[]
[]
[]
[]
[]
[]
[]
[]
[]
["6.2.2.2. Equipment insulation"]
["6 - Applicable service water storage tanks are insulated in compliance with Sentence 6.2.2.2.(1)..",null,null,null,null,null,null,null,null,null,0]
[]
[]
["Explanation:"]
[]
[]
["Exemption 1: Tanks covered by 6.2.2.1. need not comply with 6.2.2.2.(1).."]
[]
[]
["7 - Applicable service water storage tanks are protected in compliance with Sentence 6.2.2.2.(2)..",null,null,null,null,null,null,null,null,null,0]
[]
[]
["Explanation:"]
[]
[]
["6.2.2.3. Solar Thermal Service Water Heating Equipment "]
["8 - Is the building equipped with service water heating equipment using solar thermal technologies? ",null,null,null,null,null,null,null,null,null,0]
[]
[]
["9 - If Yes: Service water heating equipment using solar thermal technology is designed and installed according to Sentence 6.2.2.3.(1)..",null,null,null,null,null,null,null,null,null,0]
[]
[]
["6.2.2.4. Combination Service Water Heating and Space-Heating Equipment"]
["10 - Is the building equipped with combination service water heating and space-heating equipment?",null,null,null,null,null,null,null,null,null,0]
[]
[]
["11 - If Yes: The input to the combination equipment meets the requirements of Sentence 6.2.2.4.(1).. ",null,null,null,null,null,null,null,null,null,0]
[]
[]
["12 - If Yes: The performance of the combination equipment meets the requirements of Sentece 6.2.2.4.(2)..",null,null,null,null,null,null,null,null,null,0]
[]
[]
["6.2.2.5. Space-Heating Equipment Used for Indirect Service Water Heating"]
["13 - Space-heating equipment used for indirect service water heating complies with the energy efficiency requirements Sentence 6.2.2.5.(1)..",null,null,null,null,null,null,null,null,null,0]
[]
[]
["Explanation:"]
[]
[]
[]
["6.2.3. Piping"]
["6.2.3.1. Insulation "]
["14 - All piping conveying hot service water in circulating systems, non-circulating systems without heat traps and non-circulating systems with electric heating elements along the pipes to maintain temperature are be insulated in accordance with Table 6.2.3.1. and Sentences 6.2.3.1.(2) to (4)..",null,null,null,null,null,null,null,null,null,0]
[]
[]
["Explanation:"]
[]
[]
["Permission 1: Where piping insulation has a thermal conductivity that is lower than the range given in Table 6.2.3.1., the thickness given in the Table may be decreased according to Sentence 6.2.3.1.(3).."]
[]
[]
["Explanation:"]
[]
[]
["15 - Where piping insulation has a thermal conductivity, that is greater than the range given in Table 6.2.3.1., the thickness given in the Table is increased, according to Sentence 6.2.3.1.(2)..",null,null,null,null,null,null,null,null,null,0]
[]
[]
["Explanation:"]
[]
[]
["Explanation:"]
[]
[]
["16 - The thermal conductivity of piping insulation at the mean rating temperature determined in conformance to the standard listed in Sentence 6.2.3.1.(4)..",null,null,null,null,null,null,null,null,null,0]
[]
[]
["17 - On non-circulating systems with heat traps, the inlet and outlet piping between the storage or heating vessel and the heat traps as well as the first 2.4 m of outlet piping downstream of the heat trap, are insulated in accordance with Table 6.2.3.1. and Sentences 5.2.5.3.(5) to (7).",null,null,null,null,null,null,null,null,null,0]
[]
[]
["Explanation:"]
[]
[]
[]
["6.2.4. Controls"]
["6.2.4.1. Temperature Controls"]
["18 - Do the service water heating systems have storage tanks?",null,null,null,null,null,null,null,null,null,0]
[]
[]
["19 - If Yes: The service water heating systems are provided with automatic temperature controls according to Sentence 6.2.4.1.(1)..",null,null,null,null,null,null,null,null,null,0]
[]
[]
["6.2.4.2. Shutdown"]
["20 - Each applicable system with a storage capacity greater than or equal 100L, is equipped with shut-off devices as required in Sentence 6.2.4.2.(1)..",null,null,null,null,null,null,null,null,null,0]
[]
[]
["Explanation:"]
[]
[]
["6.2.4.3. Maintaining Temperature of Hot Service Water"]
["21 - Is the building equipped with heating elements along the service water heating sytem pipes?",null,null,null,null,null,null,null,null,null,0]
[]
[]
["22 - If Yes: Service water heating systems equipped with heating elements, have automatic temperature controls as required in Sentence 6.2.4.3.(1)..",null,null,null,null,null,null,null,null,null,0]
[]
[]
[]
["6.2.5. Systems with More Than One End Use Design Temperature"]
["6.2.5.1. Remote or Booster Heaters"]
["23 - Where less than 50% of the total design flow of a service water heating system has a design discharge temperature higher than 60°C, remote booster heaters are installed according to 6.2.5.1.(1).. ",null,null,null,null,null,null,null,null,null,0]
[]
[]
["Explanation:"]
[]
[]
[]
["6.2.6. Hot Service Water"]
["6.2.6.1. Showers"]
["24 - Is the building equipped with shower heads used for reasons other than safety?",null,null,null,null,null,null,null,null,null,0]
[]
[]
["25 - If Yes: The individual shower heads and/or multiple shower heads meet the maximum water discharge and automatic shutoff requirements of Article 6.2.6.1..",null,null,null,null,null,null,null,null,null,0]
[]
[]
["Explanation:"]
[]
[]
["6.2.6.2. Lavatories"]
["26 - Lavatory faucets have an integral means of limiting the maximum hot water discharge to the rate in Sentence 6.2.6.2.(1)..",null,null,null,null,null,null,null,null,null,0]
[]
[]
["Explanation:"]
[]
[]
["27 - Each lavatory in a public access washroom in a building of assembly occupancy is equipped with a shut-off device according to Sentence 6.2.6.2.(2)..",null,null,null,null,null,null,null,null,null,0]
[]
[]
["Explanation:"]
[]
[]
[]
["6.2.7. Swimming Pools"]
["6.2.7.1. Controls"]
["28 - Is the building equipped with a swimming pool(s) and/or a hot tub(s) ?",null,null,null,null,null,null,null,null,null,0]
[]
[]
["29 - Swimming pool heaters and pumps are controlled and configured to comply with Sentence 6.2.7.1.(1)..",null,null,null,null,null,null,null,null,null,0]
[]
[]
["30 - Swimming pool pumps and swimming pool heaters are equipped according to Sentence 6.2.7.1.(2)..",null,null,null,null,null,null,null,null,null,0]
[]
[]
["Exemption 1:  Pool pumps required by public health standards."]
[]
[]
["6.2.7.2. Pool and Hot Tub Covers"]
["31 - Where applicable, swimming pools and/or hot tubs covers meet the coverage and nominal thermal tranmittance requirements of Article 6.2.7.2..",null,null,null,null,null,null,null,null,null,0]

{"sheet":"SWH - TOP","index":10,"n_rows":111,"n_cols":11,"rows_kept":111,"cut":false,"hidden":true,"merged":[[83,0,83,8],[84,0,86,8],[110,9,112,9],[107,0,108,8],[84,9,86,9],[87,9,89,9],[87,0,89,8],[90,0,91,8],[92,0,93,8],[109,0,109,8],[110,0,112,8],[94,2,106,8],[76,0,78,8],[79,0,79,8],[80,0,82,8],[75,0,75,8],[52,0,52,8],[57,0,57,8],[58,0,58,8],[59,0,61,8],[62,0,64,8],[53,0,55,8],[65,0,67,8],[68,0,70,8],[71,0,71,8],[72,0,74,8],[68,9,70,9],[72,9,74,9],[76,9,78,9],[80,9,82,9],[2,0,3,8],[4,0,5,8],[6,0,13,8],[14,0,15,8],[28,0,28,8],[27,0,27,8],[29,0,29,8],[30,0,32,8],[33,0,35,8],[36,0,38,8],[39,0,41,8],[42,0,44,8],[0,0,0,1],[1,0,1,1],[0,2,0,8],[1,2,1,8],[33,9,35,9],[30,9,32,9],[16,0,17,2],[16,3,17,8],[25,0,26,8],[19,0,21,8],[22,0,24,8],[19,9,21,9],[22,9,24,9],[18,0,18,8],[25,9,26,9],[49,0,51,8],[46,9,51,9],[65,9,67,9],[39,9,44,9],[36,9,38,9],[53,9,55,9],[59,9,61,9],[62,9,64,9],[45,0,45,8],[46,0,48,8]]}
["Project Name",null,{"$f":"'HVAC - Prescriptive'!C1:I1","v":"Enter Project Name on 'How to Use this Document' tab"}]
["Contact Person",null,{"$f":"'Compliance Documents Checklist'!C2:F2","v":"Enter contact person name on 'How to Use this Document' tab"}]
[]
[]
["Section 6.1. General"]
[]
["Please enter here any building specific explanation with reference to the item number."]
[]
[]
[]
[]
[]
[]
[]
[0]
[]
["Incomplete Items",null,null,{"$f":"COUNTIF(K31:K113,0)+A15","v":17}]
[]
[]
["1 - This Section is completed for all service water heating systems in the building.",null,null,null,null,null,null,null,null,null,0]
[]
[]
["2 - This Section is completed for all back-up service water heating systems in the building, as required by Sentence 6.1.1.3.(2)..",null,null,null,null,null,null,null,null,null,0]
[]
[]
["Section 6.3. Trade-off Path"]
[]
[]
["6.3.1. General"]
["6.3.1.1. Application"]
["3 - The building and its service water heating system(s) allows the use of the trade-off paths by meeting the requirements of Sentence 6.3.1.1.(1)..",null,null,null,null,null,null,null,null,null,0]
[]
[]
["4 - The service water heating (SWH) system used, is of a type listed in Table 6.3.1.1..",null,null,null,null,null,null,null,null,null,0]
[]
[]
["5 - The energy type is listed in Subclause 6.3.1.1.(1).(c).(ii).",null,null,null,null,null,null,null,null,null,0]
[]
[]
["6 - The heat pump energy is electricity, as required by Subclause 6.3.1.1.(1).(c).(iii)..",null,null,null,null,null,null,null,null,null,0]
[]
[null,null,null,null,null,null,null,null,null,null,1]
["Explanation:"]
[]
[]
["6.3.1.2. Application Limitation"]
["7 - The building back-up SWH systems comply with the prescriptive requirements.",null,null,null,null,null,null,null,null,null,0]
[]
[]
["Explanation:"]
[]
[]
["6.3.1.3. Compliance"]
["8 - The SWH trade-off index, SWH-TOI, as calculated in accordance with Subsection 6.3.2., for all SWH systems, is greater or equal to 0. The SWHTOI is",null,null,null,null,null,null,null,null,null,0]
[]
[]
[]
["6.3.2. Compliance of Service Water Heating Trade-off Index"]
["6.3.2.1. SWH Trade-off Index"]
["9 - Select all types of SWH systems in the building.",null,null,null,null,null,null,null,null,null,0]
[null,null,null,null,null,null,null,null,null,null,0]
[]
["10 - The service water heating trade-off index, SWH-TOI, for SWH-1 tank systems is calculated according to the equation in Sentence 6.3.2.1.(1)..",null,null,null,null,null,null,null,null,null,0]
[]
[]
["11 - The SWH-TOI for SWH-2 tankless system is calculated according to the equation in Sentence 6.3.2.1.(2)..",null,null,null,null,null,null,null,null,null,0]
[]
[]
["12 - The SWH-TOI for SWH-3 space-heating boiler system is calculated according to the equation in Sentence 6.3.2.1.(3)..",null,null,null,null,null,null,null,null,null,0]
[]
[]
["6.3.2.2. Determination of Peak Daily Flow Ratio"]
["13 - The peak daily flow ratio, PDR, is calculated according to the equation in Sentence 6.3.2.2.(1)..",null,null,null,null,null,null,null,null,null,0]
[]
[]
["6.3.2.3. Determination of Normalized Tank Area"]
["14 - The normalized tank area, Anorm, is calculated according to the equation in Sentence 6.3.2.3.(1)..",null,null,null,null,null,null,null,null,null,0]
[]
[]
["6.3.2.4. Determination of Normalized Tank Diameter"]
["15 - The normalized tank diameter, Dnorm, is calculated according to the equation in Sentence 6.3.2.4.(1)..",null,null,null,null,null,null,null,null,null,0]
[]
[]
["6.3.2.5. Determination of Trade-off Values of Components, ToVi"]
["16 - The trade-off value, ToVi's, of the SWH component in the proposed building ToVi is determined in accordance with Table 6.3.2.5..",null,null,null,null,null,null,null,null,null,0]
[]
[]
["17 - Is a SWH summary report attached for each system?",null,null,null,null,null,null,null,null,null,0]
[]
[]
["SWH Equipment Summary of the Proposed Buiding"]
[]
[]
[]
["System Location"]
["SWH System Type"]
["ToV1"]
["ToV2"]
["ToV3"]
["ToV4"]
["ToV5"]
["ToV6"]
["ToV7"]
["ToV8"]
["ToV9"]
["ToV10"]
["ηref"]
[]
[]
["6.3.2.6. Determination of Reference Heat Generator Efficiency, nref"]
["18 - The reference heat generator efficiency, is the minimum required performance efficiency stated in Table 6.2.2.1. for the specified type of equipment.",null,null,null,null,null,null,null,null,null,0]

{"sheet":"EP & Motors - Prescriptive","index":11,"n_rows":87,"n_cols":11,"rows_kept":87,"cut":false,"hidden":true,"merged":[[80,9,88,9],[68,5,68,6],[53,9,58,9],[59,9,64,9],[69,5,69,6],[75,0,76,8],[75,9,76,9],[69,0,69,2],[68,0,68,2],[79,0,79,8],[80,0,82,8],[65,0,66,8],[67,7,67,8],[67,3,67,4],[67,0,67,2],[86,0,88,8],[25,0,25,8],[40,0,40,8],[17,0,18,2],[17,3,18,8],[67,5,67,6],[23,0,24,8],[20,0,22,8],[41,0,41,8],[42,0,42,8],[43,0,45,8],[46,0,46,8],[50,0,50,8],[47,0,49,8],[37,0,39,8],[26,0,26,8],[31,0,33,8],[0,0,0,1],[0,2,0,8],[1,0,1,1],[4,0,5,8],[23,9,24,9],[1,2,1,8],[6,0,14,8],[2,0,3,8],[19,0,19,8],[20,9,22,9],[17,9,18,9],[15,0,16,8],[28,9,30,9],[31,9,33,9],[34,9,36,9],[37,9,39,9],[43,9,45,9],[27,0,27,8],[28,0,30,8],[34,0,36,8],[72,3,72,4],[72,5,72,6],[72,7,72,8],[69,7,69,8],[69,3,69,4],[70,0,70,2],[70,3,70,4],[70,5,70,6],[70,7,70,8],[71,0,71,2],[71,3,71,4],[71,5,71,6],[71,7,71,8],[47,9,49,9],[51,0,51,8],[68,7,68,8],[56,0,58,8],[62,0,64,8],[52,0,52,8],[53,0,55,8],[59,0,61,8],[68,3,68,4],[72,0,72,2],[83,0,85,8],[74,3,74,4],[74,0,74,2],[74,5,74,6],[74,7,74,8],[78,0,78,8],[77,5,77,6],[77,3,77,4],[77,7,77,8],[77,0,77,2],[73,0,73,2],[73,3,73,4],[73,5,73,6],[73,7,73,8]]}
["Project Name",null,{"$f":"'HVAC - Prescriptive'!C1:I1","v":"Enter Project Name on 'How to Use this Document' tab"}]
["Contact Person",null,{"$f":"'Compliance Documents Checklist'!C2:F2","v":"Enter contact person name on 'How to Use this Document' tab"}]
[]
[]
["Section 7.1. General"]
[]
["Please enter here any building specific explanation with reference to the item number."]
[]
[]
[]
[]
[]
[]
[]
[]
[]
[]
["Incomplete Items",null,null,{"$f":"COUNTIF(K21:K83,0)","v":10}]
[]
[]
["1 - This Section is complete for all electrical power systems and motors connected to the building's electrical service.",null,null,null,null,null,null,null,null,null,0]
[]
[]
["Section 7.2. Prescriptive Path"]
[]
[]
["7.2.1 Electrical Distribution System"]
["7.2.1.1. Monitoring"]
["2 - Does the building contain distribution system(s) with a load carrying capacity greater than 250 kVA?",null,null,null,null,null,null,null,null,null,0]
[]
[]
["3 - If Yes: The system is designed to facilitate the installation of a means to monitor the electrical energy consumptions indicated in Sentence 7.2.1.1.(1)..",null,null,null,null,null,null,null,null,null,0]
[]
[]
["4 - Does the building have tenants or dwelling units?",null,null,null,null,null,null,null,null,null,0]
[]
[]
["5 - If Yes: The building has the means to separately monitor dwelling units or tenant spaces according to Sentence 7.2.1.1(2)..",null,null,null,null,null,null,null,null,null,0]
[]
[]
[]
["7.2.2. Voltage Drop"]
["7.2.2.1 Feeders"]
["6 - The feeder conductors are sized for a 2% maximum voltage drop, meeting the requirements of Sentence 7.2.2.1.(1).",null,null,null,null,null,null,null,null,null,0]
[]
[]
["7.2.2.2 Branch Circuit"]
["7 - The branch circuit conductors are sized for 3% maximum voltage drop, meeting the requirements of 7.2.2.2.(1).",null,null,null,null,null,null,null,null,null,0]
[]
[]
[]
["7.2.3 Transformers"]
["7.2.3.1 Transformer Selection"]
["8 - The transformers installed in the building meet the minimum efficiency and maximum loss requirements of Clauses 7.2.3.1.(1).a, 7.2.3.1.(1).b or/and 7.2.3.1.(1).c., as applicable.",null,null,null,null,null,null,null,null,null,0]
[]
[]
["Explanation:"]
[]
[]
["9 - Fill in the table below with specifications for all transformers.",null,null,null,null,null,null,null,null,null,0]
[]
[]
["Explanation:"]
[]
[]
["Tranformer List"]
[]
["Transformer Number/Label",null,null,"Dry or Liquid- Filled",null,"Performance",null,"Capacity"]
[]
[]
[]
[]
[]
[]
[]
[]
[]
[]
["7.2.4. Electrical Motors"]
["7.2.4.1. Efficiency"]
["10 - Applicable motors have nominal full load efficiencies not less than specified in Sentence 7.2.4.1.(1).",null,null,null,null,null,null,null,null,null,0]
[]
[]
["Explanation:"]
[]
[]
["Exemption 1: Elevator motors and motors that are components of rated systems need not comply."]

{"sheet":"Performance Compliance","index":12,"n_rows":193,"n_cols":11,"rows_kept":193,"cut":false,"hidden":true,"merged":[[174,9,179,9],[6,0,12,8],[164,9,166,9],[182,9,184,9],[187,9,189,9],[192,9,194,9],[84,0,86,8],[83,0,83,8],[93,9,94,9],[123,9,125,9],[126,9,128,9],[129,9,131,9],[132,9,134,9],[136,9,138,9],[139,9,141,9],[142,9,144,9],[152,9,154,9],[155,9,157,9],[80,0,80,5],[74,0,76,8],[90,0,92,8],[111,2,111,3],[17,0,17,8],[18,0,18,8],[26,9,31,9],[32,9,37,9],[146,9,151,9],[158,9,163,9],[167,9,172,9],[132,0,134,8],[149,0,151,8],[60,0,60,5],[61,0,61,5],[62,0,62,5],[63,0,63,5],[64,0,64,5],[79,0,79,5],[79,6,79,8],[77,0,78,8],[65,0,65,5],[70,0,70,5],[68,0,68,5],[69,0,69,5],[113,2,113,3],[115,0,115,1],[120,0,120,1],[115,7,115,8],[74,9,76,9],[177,0,179,8],[180,0,180,8],[20,9,22,9],[23,9,25,9],[38,9,39,9],[41,9,43,9],[45,9,47,9],[49,9,51,9],[52,9,53,9],[54,9,55,9],[139,0,141,8],[142,0,144,8],[145,0,145,8],[114,2,114,3],[71,0,71,5],[72,0,73,8],[66,0,66,5],[67,0,67,5],[81,0,81,5],[82,0,82,5],[106,2,106,3],[107,2,107,3],[96,2,96,3],[97,2,97,3],[195,7,195,8],[190,0,190,8],[191,0,191,8],[192,0,194,8],[120,7,120,8],[32,0,34,8],[26,0,28,8],[146,0,148,8],[152,0,154,8],[155,0,157,8],[158,0,160,8],[164,0,166,8],[167,0,169,8],[173,0,173,8],[174,0,176,8],[182,0,184,8],[181,0,181,8],[185,0,185,8],[186,0,186,8],[187,0,189,8],[136,0,138,8],[135,0,135,8],[161,0,163,8],[170,0,172,8],[0,0,0,1],[0,2,0,8],[1,0,1,1],[45,0,47,8],[52,0,53,8],[54,0,55,8],[56,0,56,5],[58,0,58,5],[59,0,59,5],[57,0,57,5],[20,0,22,8],[4,0,5,8],[38,0,39,8],[49,0,51,8],[35,0,37,8],[19,0,19,8],[2,0,3,8],[41,0,43,8],[13,0,14,8],[1,2,1,8],[23,0,25,8],[29,0,31,8],[44,0,44,8],[15,0,16,2],[15,3,16,8],[48,0,48,8],[98,2,98,3],[99,2,99,3],[100,2,100,3],[101,2,101,3],[108,2,108,3],[109,2,109,3],[112,2,112,3],[93,0,94,8],[95,0,95,1],[40,0,40,8],[110,2,110,3],[110,0,110,1],[110,7,110,8],[77,9,78,9],[80,9,82,9],[90,9,92,9],[95,4,109,8],[111,4,114,8],[95,2,95,3],[102,2,102,3],[103,2,103,3],[104,2,104,3],[105,2,105,3],[87,0,89,8],[84,9,89,9],[129,0,131,8],[121,4,121,8],[121,2,121,3],[115,2,115,3],[120,2,120,3],[122,0,122,8],[123,0,125,8],[116,2,116,3],[117,2,117,3],[118,2,118,3],[119,2,119,3],[116,4,119,8],[126,0,128,8]]}
["Project Name",null,{"$f":"'Compliance Documents Checklist'!C1:I1","v":"Enter Project Name on 'How to Use this Document' tab"}]
["Contact Person",null,{"$f":"'Compliance Documents Checklist'!C2:F2","v":"Enter contact person name on 'How to Use this Document' tab"}]
[]
[]
["Section 8.1. General"]
[]
["Please enter here any building specific explanation with reference to the item number."]
[]
[]
[]
[]
[]
[]
[]
[]
["Incomplete Items",null,null,{"$f":"COUNTIF(K21:K195,0)","v":26}]
[]
[]
["8.1.1. General"]
["8.1.1.2. Application"]
["1 - For applicable buildings, according to Article 8.1.1.2.., complete this tab. ",null,null,null,null,null,null,null,null,null,0]
[]
[]
["2 - The occupancy types are known and there is sufficient building information, as required by Sentence 8.1.1.2.(1)..",null,null,null,null,null,null,null,null,null,0]
[]
[]
["3 - If insufficient information is known, the prescriptive requirements of the NECB are used, as required by Sentence 8.1.1.2.(2)..",null,null,null,null,null,null,null,null,null,0]
[]
[]
["Explanation:"]
[]
[]
["4 - Part 8 applies to a single building, as required by Sentence 8.1.1.4.(4)..",null,null,null,null,null,null,null,null,null,0]
[]
[]
["Permission 1: Structures divided into multiple buildings are permitted to be treated as one building, according to the requirements of Sentence 8.1.1.2.(5).."]
[]
[]
["Section 8.4. Performance Path"]
[]
["8.4.1.1. General"]
["5 - The climate zone and prescriptive requirements are used for the building energy target, as required by Sentence 8.4.1.1.(1)..",null,null,null,null,null,null,null,null,null,0]
[]
[]
[]
["6 - The building is supplied with the following heating, cooling and service water heating energy types.",null,null,null,null,null,null,null,null,null,0]
[]
[]
[]
["7 - Is a space summary report attached?",null,null,null,null,null,null,null,null,null,0]
[]
[]
["Space Summary"]
[]
[]
[]
["Building Use/Space Type",null,null,null,null,null,"Conditioned Area (m2)","Unconditioned Area (m2)","Total Area (m2)"]
[]
[]
[]
[]
[]
[]
[]
[]
[]
[]
[]
[]
[]
[]
["total",null,null,null,null,null,{"$f":"SUM(G58:G71)","v":0},{"$f":"SUM(H58:H71)","v":0},{"$f":"SUM(I58:I71)","v":0}]
[]
[]
["8 a) - If software was used in compliance calculations, complete the following \"Advisory Messages\" Table. The software program used was                                                                                     and the version was                                 .           ",null,null,null,null,null,null,null,null,null,0]
[]
[]
["Advisory Messages"]
[]
["What software was used in the compliance calculation? Please include the edition and version of the software."]
[null,null,null,null,null,null,"Proposed Building Model","Reference Building Model"]
["Number of unmet annual heating load hours"]
["Number of unmet annual cooling load hours"]
["Warning/error messages displayed by the software (if applicable):"]
["8 b) - Warning or error messages are provided in the report."]
[]
[]
["Explanation:"]
[]
[]
["9 - Energy summary report is attached (note: the report must be attached). ",null,null,null,null,null,null,null,null,null,0]
[]
[]
["Energy Summary"]
[]
["Proposed Building (GJ/year)",null,"Reference Building (GJ/year)"]
["Electricity"]
[" Space Cool"]
[" Heat Rejection"]
[" Refrigeration"]
[" Space Heat"]
[" Heat Pump"]
[" Hot Water"]
[" Vent. Fans"]
[" Pumps & Aux."]
[" Ext. Usage"]
[" Misc. Equip."]
[" Task Lights"]
[" Area Lights"]
[" Total",{"$f":"SUM(B98:B109)","v":0},{"$f":"SUM(C98:D109)","v":0}]
["Proposed Building (GJ/year)",null,"Reference Building(GJ/year)"]
["Natural Gas"]
[" Space Heat"]
[" Hot Water"]
[" Total",{"$f":"SUM(B113:B114)","v":0},{"$f":"SUM(C113:D114)","v":0}]
["Proposed Building (GJ/year)",null,"Reference Building (GJ/year)"]
["Heating Oil"]
[" Space Heat"]
[" Hot Water"]
[" Total",{"$f":"SUM(B118:B119)","v":0},{"$f":"SUM(C118:D119)","v":0}]
["Proposed Building (GJ/year)",null,"Reference Building (GJ/year)"]
["Total Building Consumption",{"$f":"SUM(B120,B115,B110)","v":0},{"$f":"SUM(C120,C115,C110)","v":0}]
[]
["10 - The Annual Energy Consumption of the Proposed Building is calculated according to Subsection 8.4.3..",null,null,null,null,null,null,null,null,null,0]
[]
[]
["11 - The Annual Energy Consumption of the Proposed Building is:                                     ",null,null,null,null,null,null,null,null,null,0]
[]
[]
["12 - The Building Energy Target of the Reference Building is calculated according to Subsection 8.4.4..",null,null,null,null,null,null,null,null,null,0]
[]
[]
["13 - The Building Energy Target of the Reference Building is:",null,null,null,null,null,null,null,null,null,0]
[]
[]
["8.4.1.2. Determination of Compliance"]
["14 - The annual energy consumption of the proposed building does not exceed the building energy target, as required by Sentence 8.4.1.2.(2)..",null,null,null,null,null,null,null,null,null,0]
[]
[]
["15 - The number of unmet heating load hours does not exceed 100 hours, as required in 8.4.1.2.(3)..",null,null,null,null,null,null,null,null,null,0]
[]
[]
["16 - The number of unmet cooling load hours does not differ by more than ± 10%, as required in 8.4.1.2.(4)..",null,null,null,null,null,null,null,null,null,0]
[]
[]
["8.4.1.3. Limitations"]
["17 - The overall thermal transmittance of the building envelope assemblies with embedded radiant systems meet the insulation requirements of Clause 3.4.1.2.(1).(a)..",null,null,null,null,null,null,null,null,null,0]
[]
[]
["Explanation:"]
[]
[]
["18 - Insulation material is protected as required by Clause 3.4.1.2.(1).(b)..",null,null,null,null,null,null,null,null,null,0]
[]
[]
["19 - All HVAC appliances and equipment comply with applicable energy efficiency regulations or standards, as required by Sentence 5.4.1.2.(1)..",null,null,null,null,null,null,null,null,null,0]
[]
[]
["20 - Back-up HVAC systems comply with prescriptive requirements, as required by 5.4.1.2.(2)..",null,null,null,null,null,null,null,null,null,0]
[]
[]
["Explanation:"]
[]
[]
["21 -  All SWH appliances and equipment comply with applicable energy efficiency regulations or standards, as required by Sentence 6.4.1.2.(1).. ",null,null,null,null,null,null,null,null,null,0]
[]
[]
["22 - Back-up SWH systems comply with prescriptive requirements, as required by Sentence 6.4.1.2.(2)..",null,null,null,null,null,null,null,null,null,0]
[]
[]
["Explanation:"]
[]
[]
["8.4.1.4. Addition"]
["23 - If an addition is present, the building complies with Article 8.4.1.4..",null,null,null,null,null,null,null,null,null,0]
[]
[]
["Explanation:"]
[]
[]
[]
["8.4.2. Compliance Calculations"]
["24 - The compliance calculations completed, meet the requirements of Subsection 8.4.2..",null,null,null,null,null,null,null,null,null,0]
[]
[]
[]
["8.4.3. Annual Energy Consumption of Proprosed Building"]
["25 - The calculations of the Annual Energy Consumption calculation of the proposed building completed, meet the requirement of Subsection 8.4.3..",null,null,null,null,null,null,null,null,null,0]
[]
[]
[]
["8.4.4. Building Energy Target of the Reference Building"]
["26 - The building Energy Target calculation of the reference building completed, meet the requirements of Subsection 8.4.4..",null,null,null,null,null,null,null,null,null,0]

{"sheet":"Tables","index":13,"n_rows":17,"n_cols":4,"rows_kept":17,"cut":false,"hidden":true,"merged":[]}
[64]
[]
[]
["Table 6.2.2.1."]
["Service Water Heaters","Component","Input","Capacity, L"]
["Pool Heaters","Electric","≤ 12 kW","50 - 270"]
[null,"Heat pump water heaters","-","> 270 and ≤ 454"]
[null,"Gas-fired",">12 kW","> 454"]
[null,"Oil-fired instantaneous","≤ 24 A and ≤ 250 V","-"]
[null,"Oil-fired storage-type","< 22 kW","≤ 190"]
[null,"Gas-fired Pool Heater","22 - 117 kW","> 190"]
[null,"Oil-fired Pool Heater","> 117 kW","> 190"]
[null,null,"≤ 61.5 kW "]
[null,null,"Others"]
[null,null,"≤ 30.5 kW"]
[null,null,"> 30.5 kW"]
[null,null,"< 117.2 kW"]

{"sheet":"Sheet16","index":14,"n_rows":0,"n_cols":0,"rows_kept":0,"cut":false,"hidden":true,"merged":[[5,0,7,16383],[10,0,13,16383],[15,0,17,6],[19,0,21,6]]}

{"sheet":"Sheet1","index":15,"n_rows":0,"n_cols":0,"rows_kept":0,"cut":false,"hidden":true,"merged":[]}